Body Name,Body,Service Division Label,Service Division Code,Organisational Unit,Expenditure Category,Expenditure Code,CIPFA detailed expediture type,CIPFA detailed expediture code,Narrative,Date,Transaction number,Net Amount,Capital and Revenue,Supplier Name,Supplier ID
Chorley Borough Council,http://statistics.data.gov.uk/id/local-authority/30UE,Tourism,1039,GOVN - Policy & Governance,Tools & Equipment - Hire,40004,"Equipment, Furniture & Materia",5023,Fuel for generators,28/10/2022,173487,"3,660.00",Revenue,Adlington Welding Supplies Ltd,21942
Chorley Borough Council,http://statistics.data.gov.uk/id/local-authority/30UE,Unapportionable Central OHeads,1009,CUST - Customer & Digital,Bank Charges,40151,Miscellaneous Expenses,5034,CHBC,07/10/2022,172900,785.37,Revenue,Allpay Net Ltd,17242
Chorley Borough Council,http://statistics.data.gov.uk/id/local-authority/30UE,Central Support Services,1009,EARL - Communities,External Contractor,40198,Miscellaneous Expenses,5034,Domestic pest control service delivery,07/10/2022,170651,"1,220.83",Revenue,ALPHA PEST CONTROL LIMITED,18208
Chorley Borough Council,http://statistics.data.gov.uk/id/local-authority/30UE,Open Spaces,1038,GOVN - Policy & Governance,Car Leasing Payment,14100,Direct Employee Expenses,5001,LA21 GMZ: NAME REDACTED (Annual),14/10/2022,173135,"4,220.71",Revenue,Alphabet (Uk) Fleet Management Ltd,16651
Chorley Borough Council,http://statistics.data.gov.uk/id/local-authority/30UE,Open Spaces,1038,GOVN - Policy & Governance,Car Leasing Payment,14100,Direct Employee Expenses,5001,VAT,14/10/2022,173135,368.98,Revenue,Alphabet (Uk) Fleet Management Ltd,16651
Chorley Borough Council,http://statistics.data.gov.uk/id/local-authority/30UE,Control Accounts,Control,GOVN - Policy & Governance,Manual Control Account,1,Balance Sheet,Balance,#NAME?,14/10/2022,173135,-368.98,Revenue,Alphabet (Uk) Fleet Management Ltd,16651
Chorley Borough Council,http://statistics.data.gov.uk/id/local-authority/30UE,Unapportionable Central OHeads,1009,GOVN - Policy & Governance,Refreshments,40036,Catering,5024,angel springs water supply,14/10/2022,172848,954.93,Revenue,Angel Springs Ltd T/A Waterlogic UK,77689
Chorley Borough Council,http://statistics.data.gov.uk/id/local-authority/30UE,Unapportionable Central OHeads,1009,GOVN - Policy & Governance,Refreshments,40036,Catering,5024,angel springs water supply,14/10/2022,172889,534.53,Revenue,Angel Springs Ltd T/A Waterlogic UK,77689
Chorley Borough Council,http://statistics.data.gov.uk/id/local-authority/30UE,Unapportionable Central OHeads,1009,GOVN - Policy & Governance,Refreshments,40036,Catering,5024,angel springs water supply,14/10/2022,172890,376.51,Revenue,Angel Springs Ltd T/A Waterlogic UK,77689
Chorley Borough Council,http://statistics.data.gov.uk/id/local-authority/30UE,Unapportionable Central OHeads,1009,GOVN - Policy & Governance,Refreshments,40036,Catering,5024,angel springs water supply,14/10/2022,172891,512.62,Revenue,Angel Springs Ltd T/A Waterlogic UK,77689
Chorley Borough Council,http://statistics.data.gov.uk/id/local-authority/30UE,Unapportionable Central OHeads,1009,GOVN - Policy & Governance,Refreshments,40036,Catering,5024,angel springs water supply,14/10/2022,172892,344.62,Revenue,Angel Springs Ltd T/A Waterlogic UK,77689
Chorley Borough Council,http://statistics.data.gov.uk/id/local-authority/30UE,Central Support Services,1009,EARL - Communities,Impounded Dogs Costs,40207,Miscellaneous Expenses,5034,Stray Dog Service,07/10/2022,171155,710.40,Revenue,Animal Wardens Ltd,80965
Chorley Borough Council,http://statistics.data.gov.uk/id/local-authority/30UE,Central Support Services,1009,EARL - Communities,Works In Default,40199,Miscellaneous Expenses,5034,Attendance at ADDRESS REDACTED to collect two dogs and one cat. Care of two dogs and one cat and fees for inoculations,21/10/2022,173167,"1,014.00",Revenue,Animal Wardens Ltd,80965
Chorley Borough Council,http://statistics.data.gov.uk/id/local-authority/30UE,Unapportionable Central OHeads,1009,GOVN - Policy & Governance,Misc Expenses,40200,Miscellaneous Expenses,5034,October`s website hosting (for WordPress websites) / UK Fast,14/10/2022,173033,297.55,Revenue,ANS Group Limited,74638
Chorley Borough Council,http://statistics.data.gov.uk/id/local-authority/30UE,Service Management & Support,1009,CUST - Customer & Digital,Protective Clothing,40040,"Clothing, Uniforms and Laundry",5025,Goliath SDR10CSI Black Safety Boot- 6PP7800 ,28/10/2022,173329,385.20,Revenue,Arco Limited,17458
Chorley Borough Council,http://statistics.data.gov.uk/id/local-authority/30UE,Planning Policy,1092,PLAN - Planning & Development,Consultants` Fees,40077,Services,5027,IDP and Viability Topic Paper,14/10/2022,173030,"1,250.00",Revenue,Aspinall Verdi Limited,83801
Chorley Borough Council,http://statistics.data.gov.uk/id/local-authority/30UE,Control Accounts,Control,GOVN - Policy & Governance,Manual Control Account,1,Balance Sheet,Balance,#NAME?,07/10/2022,172954,-271.95,Revenue,Athlon Mobility Services,77684
Chorley Borough Council,http://statistics.data.gov.uk/id/local-authority/30UE,Control Accounts,Control,GOVN - Policy & Governance,Manual Control Account,1,Balance Sheet,Balance,#NAME?,07/10/2022,172955,-281.67,Revenue,Athlon Mobility Services,77684
Chorley Borough Council,http://statistics.data.gov.uk/id/local-authority/30UE,Unapportionable Central OHeads,1009,GROW - Commercial & Property,General Repairs - Reactive,20004,Repairs Maintenance & Alts,5005,Cotswold - Reactive repairs of domestic appliances,28/10/2022,173316,275.00,Revenue,Aztec Domestics,16214
Chorley Borough Council,http://statistics.data.gov.uk/id/local-authority/30UE,Service Management & Support,1009,CUST - Customer & Digital,Hire Of Vehicles and Plant,30028,Contrct Hire & Operating Lease,5018,As per submission to ITT invitation to Tender for the contract hire with service and maintenance of Grounds Maintenance Machinery,28/10/2022,173269,"1,242.40",Revenue,Balmers Garden Machinery,17075
Chorley Borough Council,http://statistics.data.gov.uk/id/local-authority/30UE,Capital,Capital,PLAN - Planning & Development,Main Contractor,3007,Capital Expenditure,Capital,"Urban Tree Challenge Fund  - 10 trees as quoted, twin stakes, tree guards and watering tube. Delivery Nov 2022",21/10/2022,168790,957.00,Capital,Bannister Hall Ltd,22515
Chorley Borough Council,http://statistics.data.gov.uk/id/local-authority/30UE,Control Accounts,Control,GOVN - Policy & Governance,General Balances,100,Balance Sheet,Balance,28-Aug-22,24/10/2022,170741,"10,509.69",Revenue,Barclaycard Commercial,59848
Chorley Borough Council,http://statistics.data.gov.uk/id/local-authority/30UE,Corporate Management,1008,GOVN - Policy & Governance,Bank Charges,40151,Miscellaneous Expenses,5034,Standard,24/10/2022,170737,217.00,Revenue,Barclaycard Merchant Services,61601
Chorley Borough Council,http://statistics.data.gov.uk/id/local-authority/30UE,Corporate Management,1008,GOVN - Policy & Governance,Bank Charges,40151,Miscellaneous Expenses,5034,Exempt,24/10/2022,170737,511.48,Revenue,Barclaycard Merchant Services,61601
Chorley Borough Council,http://statistics.data.gov.uk/id/local-authority/30UE,Corporate Management,1008,GOVN - Policy & Governance,Bank Charges,40151,Miscellaneous Expenses,5034,31-Aug-22,24/10/2022,170874,534.01,Revenue,Barclaycard Merchant Services,61601
Chorley Borough Council,http://statistics.data.gov.uk/id/local-authority/30UE,Corporate Management,1008,GOVN - Policy & Governance,Bank Charges,40151,Miscellaneous Expenses,5034,31-Aug-22,24/10/2022,170876,"1,281.07",Revenue,Barclaycard Merchant Services,61601
Chorley Borough Council,http://statistics.data.gov.uk/id/local-authority/30UE,Corporate Management,1008,GOVN - Policy & Governance,Bank Charges,40151,Miscellaneous Expenses,5034,31-Aug-22,24/10/2022,170877,"2,425.54",Revenue,Barclaycard Merchant Services,61601
Chorley Borough Council,http://statistics.data.gov.uk/id/local-authority/30UE,Corporate Management,1008,GOVN - Policy & Governance,Bank Charges,40151,Miscellaneous Expenses,5034,,24/10/2022,171246,15.00,Revenue,Barclaycard Merchant Services,61601
Chorley Borough Council,http://statistics.data.gov.uk/id/local-authority/30UE,Corporate Management,1008,GOVN - Policy & Governance,Bank Charges,40151,Miscellaneous Expenses,5034,,24/10/2022,171246,"2,301.43",Revenue,Barclaycard Merchant Services,61601
Chorley Borough Council,http://statistics.data.gov.uk/id/local-authority/30UE,Corporate Management,1008,GOVN - Policy & Governance,Bank Charges,40151,Miscellaneous Expenses,5034,31-Aug-22,24/10/2022,172934,217.00,Revenue,Barclaycard Merchant Services,61601
Chorley Borough Council,http://statistics.data.gov.uk/id/local-authority/30UE,Corporate Management,1008,GOVN - Policy & Governance,Bank Charges,40151,Miscellaneous Expenses,5034,Exempt,24/10/2022,172934,133.67,Revenue,Barclaycard Merchant Services,61601
Chorley Borough Council,http://statistics.data.gov.uk/id/local-authority/30UE,Corporate Management,1008,GOVN - Policy & Governance,Bank Charges,40151,Miscellaneous Expenses,5034,30-Jun-22,24/10/2022,172936,217.00,Revenue,Barclaycard Merchant Services,61601
Chorley Borough Council,http://statistics.data.gov.uk/id/local-authority/30UE,Corporate Management,1008,GOVN - Policy & Governance,Bank Charges,40151,Miscellaneous Expenses,5034,Exempt,24/10/2022,172936,212.01,Revenue,Barclaycard Merchant Services,61601
Chorley Borough Council,http://statistics.data.gov.uk/id/local-authority/30UE,Corporate Management,1008,GOVN - Policy & Governance,Bank Charges,40151,Miscellaneous Expenses,5034,30-Jun-22,24/10/2022,172937,482.77,Revenue,Barclaycard Merchant Services,61601
Chorley Borough Council,http://statistics.data.gov.uk/id/local-authority/30UE,Corporate Management,1008,GOVN - Policy & Governance,Bank Charges,40151,Miscellaneous Expenses,5034,30-Jun-22,24/10/2022,172938,"1,332.26",Revenue,Barclaycard Merchant Services,61601
Chorley Borough Council,http://statistics.data.gov.uk/id/local-authority/30UE,Corporate Management,1008,GOVN - Policy & Governance,Bank Charges,40151,Miscellaneous Expenses,5034,30-Jun-22,24/10/2022,172939,"2,906.71",Revenue,Barclaycard Merchant Services,61601
Chorley Borough Council,http://statistics.data.gov.uk/id/local-authority/30UE,Tourism,1039,GOVN - Policy & Governance,Publicity - Advertising,40157,Miscellaneous Expenses,5034,Chorley Live Radio Advertising for Rock FM,28/10/2022,173249,"1,395.22",Revenue,Bauer Active Ltd,50574
Chorley Borough Council,http://statistics.data.gov.uk/id/local-authority/30UE,Service Management & Support,1009,CUST - Customer & Digital,Grounds Maintenance Contractor,20043,Grounds Maintenance Costs,5013,Tree Pruning adjacent ADDRESS REDACTED,28/10/2022,173364,600.00,Revenue,Beardwood Tree Services,77437
Chorley Borough Council,http://statistics.data.gov.uk/id/local-authority/30UE,Service Management & Support,1009,CUST - Customer & Digital,Grounds Maintenance Contractor,20043,Grounds Maintenance Costs,5013,Pruning of Poplar and Lime at ADDRESS REDACTED,28/10/2022,173365,690.00,Revenue,Beardwood Tree Services,77437
Chorley Borough Council,http://statistics.data.gov.uk/id/local-authority/30UE,Democratic Represent and  Mgnt,1007,PLAN - Planning & Development,Other Fees,40212,Miscellaneous Expenses,5034,Growth Lancashire Local Authority core funding contribution 2022-2023,14/10/2022,172864,"15,000.00",Revenue,Blackburn with Darwen Borough Council,21000
Chorley Borough Council,http://statistics.data.gov.uk/id/local-authority/30UE,Capital,Capital,GROW - Commercial & Property,Other Capital Related Fees,3024,Capital Expenditure,Capital,ADDRESS REDACTED  Asbestos survey as agreed with NAME REDACTED,07/10/2022,170935,285.00,Capital,Bradley Environmental Consultants Ltd,77154
Chorley Borough Council,http://statistics.data.gov.uk/id/local-authority/30UE,Capital,Capital,GROW - Commercial & Property,Other Capital Related Fees,3024,Capital Expenditure,Capital,ADDRESS REDACTED Full R and D survey at above site as discussed with NAME REDACTED,28/10/2022,173232,349.99,Capital,Bradley Environmental Consultants Ltd,77154
Chorley Borough Council,http://statistics.data.gov.uk/id/local-authority/30UE,Business Support,1095,GROW - Commercial & Property,Electricity,20013,Energy Costs,5006,29/8 to 28/9/22,14/10/2022,173124,414.52,Revenue,British Gas Business,22242
Chorley Borough Council,http://statistics.data.gov.uk/id/local-authority/30UE,Unapportionable Central OHeads,1009,GROW - Commercial & Property,General Repairs - Reactive,20004,Repairs Maintenance & Alts,5005,"Town Hall  Deliver, set up and collect 2 no Air con units.",07/10/2022,171185,424.69,Revenue,Bryan Lee Building Contractors Ltd,78160
Chorley Borough Council,http://statistics.data.gov.uk/id/local-authority/30UE,Capital,Capital,GROW - Commercial & Property,Other Capital Related Fees,3024,Capital Expenditure,Capital,"Covered Market Works Building works to various cabins in the covered market. Suspended ceilings, vinyl flooring ",07/10/2022,172718,"27,283.37",Capital,Bryan Lee Building Contractors Ltd,78160
Chorley Borough Council,http://statistics.data.gov.uk/id/local-authority/30UE,Capital,Capital,GROW - Commercial & Property,Main Contractor,3007,Capital Expenditure,Capital,Astley Hall Renovation and Conservation Project works - new PO as other lapsed financial years,14/10/2022,172943,"38,106.40",Capital,Bullen Conservation Ltd,68424
Chorley Borough Council,http://statistics.data.gov.uk/id/local-authority/30UE,Capital,Capital,GROW - Commercial & Property,Main Contractor,3007,Capital Expenditure,Capital,Astley Hall Renovation and Conservation Project works - new PO as other lapsed financial years,14/10/2022,172978,"42,157.93",Capital,Bullen Conservation Ltd,68424
Chorley Borough Council,http://statistics.data.gov.uk/id/local-authority/30UE,Central Support Services,1009,CUST - Customer & Digital,Misc Expenses,40200,Miscellaneous Expenses,5034,1/7 to 30/9/22,21/10/2022,173125,"1,524.34",Revenue,Canon (UK) Ltd,17492
Chorley Borough Council,http://statistics.data.gov.uk/id/local-authority/30UE,Building Control,1090,PLAN - Planning & Development,Agency Staff,13000,Direct Employee Expenses,5001,Agency fees for Building Control Officer NAME REDACTED July 2022 ongoing contract,14/10/2022,170914,"1,032.00",Revenue,Carrington West Ltd,83124
Chorley Borough Council,http://statistics.data.gov.uk/id/local-authority/30UE,Building Control,1090,PLAN - Planning & Development,Agency Staff,13000,Direct Employee Expenses,5001,Agency fees for Building Control Officer NAME REDACTED July 2022 ongoing contract,14/10/2022,170942,"1,320.00",Revenue,Carrington West Ltd,83124
Chorley Borough Council,http://statistics.data.gov.uk/id/local-authority/30UE,Building Control,1090,PLAN - Planning & Development,Agency Staff,13000,Direct Employee Expenses,5001,Agency fees for Building Control Officer NAME REDACTED July 2022 ongoing contract,28/10/2022,173367,"1,176.00",Revenue,Carrington West Ltd,83124
Chorley Borough Council,http://statistics.data.gov.uk/id/local-authority/30UE,Building Control,1090,PLAN - Planning & Development,Agency Staff,13000,Direct Employee Expenses,5001,Agency fees for Building Control Officer NAME REDACTED July 2022 ongoing contract,28/10/2022,173368,"1,152.00",Revenue,Carrington West Ltd,83124
Chorley Borough Council,http://statistics.data.gov.uk/id/local-authority/30UE,Unapportionable Central OHeads,1009,GOVN - Policy & Governance,Agency Staff,13000,Direct Employee Expenses,5001,Recruitment Services for 3 Candidates within Finance,28/10/2022,170631,"6,400.00",Revenue,Castlefield Recruitment Limited,80454
Chorley Borough Council,http://statistics.data.gov.uk/id/local-authority/30UE,Unapportionable Central OHeads,1009,GOVN - Policy & Governance,Agency Staff,13000,Direct Employee Expenses,5001,Recruitment Services for 3 Candidates within Finance,28/10/2022,172884,"6,400.00",Revenue,Castlefield Recruitment Limited,80454
Chorley Borough Council,http://statistics.data.gov.uk/id/local-authority/30UE,Corporate Management,1008,GOVN - Policy & Governance,Other Contributions,40145,Grants and Subscriptions,5031,To provide community transports services in Chorley in accordance with grant agreement. ,14/10/2022,170939,"10,000.00",Revenue,Central Lancs Dial-A-Ride Ltd,16617
Chorley Borough Council,http://statistics.data.gov.uk/id/local-authority/30UE,Regulatory Services,1048,PLAN - Planning & Development,Taxi Testing & Vehicle Safety Report,40234,Services,5027,MOTS,21/10/2022,172914,"1,042.15",Revenue,Chorley Autocare Ltd,17110
Chorley Borough Council,http://statistics.data.gov.uk/id/local-authority/30UE,Regulatory Services,1048,PLAN - Planning & Development,Taxi Testing & Vehicle Safety Report,40234,Services,5027,Taxi tests,21/10/2022,172914,162.45,Revenue,Chorley Autocare Ltd,17110
Chorley Borough Council,http://statistics.data.gov.uk/id/local-authority/30UE,Recreation & Sport,1037,GOVN - Policy & Governance,Misc Expenses,40200,Miscellaneous Expenses,5034,Income in Advance Apr-July on annual memberships due to CLL,24/10/2022,170717,"16,714.07",Revenue,Chorley Leisure Ltd,83376
Chorley Borough Council,http://statistics.data.gov.uk/id/local-authority/30UE,Central Support Services,1009,GOVN - Policy & Governance,External Contractor,40198,Miscellaneous Expenses,5034,Westway External Contractor Recharges - Jan-Feb,24/10/2022,170718,"7,819.02",Revenue,Chorley Leisure Ltd,83376
Chorley Borough Council,http://statistics.data.gov.uk/id/local-authority/30UE,Recreation & Sport,1037,GOVN - Policy & Governance,Misc Expenses,40200,Miscellaneous Expenses,5034,Holiday Entitlement to NAMES REDACTED to be paid for the time they were working for Chorley Council in the Covid team.,24/10/2022,170719,596.11,Revenue,Chorley Leisure Ltd,83376
Chorley Borough Council,http://statistics.data.gov.uk/id/local-authority/30UE,Recreation & Sport,1037,GOVN - Policy & Governance,External Contractors,50008,Private Contractors,5042,qtr3,24/10/2022,170755,"82,750.00",Revenue,Chorley Leisure Ltd,83376
Chorley Borough Council,http://statistics.data.gov.uk/id/local-authority/30UE,Recreation & Sport,1037,GOVN - Policy & Governance,External Contractors,50008,Private Contractors,5042,Quarter 4 subsify payment,24/10/2022,172812,"82,750.00",Revenue,Chorley Leisure Ltd,83376
Chorley Borough Council,http://statistics.data.gov.uk/id/local-authority/30UE,Central Support Services,1009,EARL - Communities,Children's Activities,40188,Miscellaneous Expenses,5034,Delivery of Quarter 4 PASTA programme,07/10/2022,172870,"7,500.00",Revenue,Chorley School Sport Partnership,56115
Chorley Borough Council,http://statistics.data.gov.uk/id/local-authority/30UE,Homelessness,1075,EARL - Communities,Misc Expenses,40200,Miscellaneous Expenses,5034,SR Programme,07/10/2022,172806,375.00,Revenue,Chorley United Reformed Church,77003
Chorley Borough Council,http://statistics.data.gov.uk/id/local-authority/30UE,Tourism,1039,GOVN - Policy & Governance,Professional Fees,40063,Services,5027,First Aid cover at events,28/10/2022,173408,300.00,Revenue,Chorley`s Angels Community Group,63882
Chorley Borough Council,http://statistics.data.gov.uk/id/local-authority/30UE,Corporate Management,1008,EARL - Communities,Other Contributions,40145,Grants and Subscriptions,5031,Delivery of support for residents experiencing financial hardship,28/10/2022,173071,"9,000.00",Revenue,Citizens Advice Lancashire,17035
Chorley Borough Council,http://statistics.data.gov.uk/id/local-authority/30UE,Economic Development,1096,GROW - Commercial & Property,Fixtures & Fittings - Repair/Mtnce,20028,Fixtures and Fittings,5010,Dismantle approx. 1500 metres of summer bunting from around Chorley Town Centre,07/10/2022,171145,"1,500.00",Revenue,City Illuminations Ltd,77388
Chorley Borough Council,http://statistics.data.gov.uk/id/local-authority/30UE,Service Management & Support,1009,CUST - Customer & Digital,Grounds Maintenance Contractor,20043,Grounds Maintenance Costs,5013,Hire a MEWP with man to take the lamp post baskets down,07/10/2022,172741,650.00,Revenue,City Illuminations Ltd,77388
Chorley Borough Council,http://statistics.data.gov.uk/id/local-authority/30UE,Central Support Services,1009,CUST - Customer & Digital,IT Software - Annual Licences,40101,Communication and Computing,5028,CivicaPay - Annual Subscription - 3DSV2 - Year 1 (go live - 29/09/2022),21/10/2022,172950,700.00,Revenue,Civica UK Limited,17463
Chorley Borough Council,http://statistics.data.gov.uk/id/local-authority/30UE,Central Support Services,1009,CUST - Customer & Digital,IT Software - Annual Licences,40101,Communication and Computing,5028,CivicaPay - Annual Subscription - 3DSV2 - Year 1 (go live - 29/09/2022),21/10/2022,172951,500.00,Revenue,Civica UK Limited,17463
Chorley Borough Council,http://statistics.data.gov.uk/id/local-authority/30UE,Unapportionable Central OHeads,1009,GOVN - Policy & Governance,IT Software - Annual Licences,40101,Communication and Computing,5028,"Licence, Support and Maintenance for the Period: 01/10/2022 to 30/09/2023 UI for 3x Additional Companies",21/10/2022,173024,"1,968.75",Revenue,Civica UK Limited,17463
Chorley Borough Council,http://statistics.data.gov.uk/id/local-authority/30UE,Unapportionable Central OHeads,1009,GROW - Commercial & Property,General Repairs - Reactive,20004,Repairs Maintenance & Alts,5005,Primrose  - Lifts Reactive Repairs,07/10/2022,170519,"1,107.62",Revenue,Classic Lifts Limited,20897
Chorley Borough Council,http://statistics.data.gov.uk/id/local-authority/30UE,Capital,Capital,PLAN - Planning & Development,Main Contractor,3007,Capital Expenditure,Capital,"Playing Pitch Improvements at Wigan Lane Playing Field, Chorley",14/10/2022,172776,"1,382.07",Capital,Cleveland Land Services (Guisborough) Limited,83953
Chorley Borough Council,http://statistics.data.gov.uk/id/local-authority/30UE,Capital,Capital,PLAN - Planning & Development,Main Contractor,3007,Capital Expenditure,Capital,Compact Athletics Track Hurdles Line Markings,28/10/2022,173349,"1,092.50",Capital,Cleveland Land Services (Guisborough) Limited,83953
Chorley Borough Council,http://statistics.data.gov.uk/id/local-authority/30UE,Recreation & Sport,1037,GROW - Commercial & Property,Gas,20014,Energy Costs,5006,Lodge bank (brinscall baths),07/10/2022,172822,"4,358.68",Revenue,Corona Energy Retail 2 Ltd,67249
Chorley Borough Council,http://statistics.data.gov.uk/id/local-authority/30UE,Recreation & Sport,1037,GROW - Commercial & Property,Gas,20014,Energy Costs,5006,Centra drive - Clayton Green,07/10/2022,172823,"1,372.11",Revenue,Corona Energy Retail 2 Ltd,67249
Chorley Borough Council,http://statistics.data.gov.uk/id/local-authority/30UE,Business Support,1095,GROW - Commercial & Property,Gas,20014,Energy Costs,5006,Fleet street primrose gardens,07/10/2022,172824,"2,856.37",Revenue,Corona Energy Retail 2 Ltd,67249
Chorley Borough Council,http://statistics.data.gov.uk/id/local-authority/30UE,Democratic Represent and  Mgnt,1007,GROW - Commercial & Property,Gas,20014,Energy Costs,5006,Water street - all seasons,07/10/2022,172825,"15,126.01",Revenue,Corona Energy Retail 2 Ltd,67249
Chorley Borough Council,http://statistics.data.gov.uk/id/local-authority/30UE,Central Support Services,1009,GROW - Commercial & Property,Gas,20014,Energy Costs,5006,Westway,07/10/2022,172832,261.80,Revenue,Corona Energy Retail 2 Ltd,67249
Chorley Borough Council,http://statistics.data.gov.uk/id/local-authority/30UE,Democratic Represent and  Mgnt,1007,GROW - Commercial & Property,Gas,20014,Energy Costs,5006,Astley hall,07/10/2022,172925,283.05,Revenue,Corona Energy Retail 2 Ltd,67249
Chorley Borough Council,http://statistics.data.gov.uk/id/local-authority/30UE,Homelessness,1075,GROW - Commercial & Property,Gas,20014,Energy Costs,5006,Cotswold house,07/10/2022,172930,"1,277.62",Revenue,Corona Energy Retail 2 Ltd,67249
Chorley Borough Council,http://statistics.data.gov.uk/id/local-authority/30UE,Recreation & Sport,1037,GROW - Commercial & Property,Gas,20014,Energy Costs,5006,clayton brook village hall,07/10/2022,172940,334.17,Revenue,Corona Energy Retail 2 Ltd,67249
Chorley Borough Council,http://statistics.data.gov.uk/id/local-authority/30UE,Central Support Services,1009,GROW - Commercial & Property,Gas,20014,Energy Costs,5006,Civic offices - Union street,07/10/2022,172941,"1,566.11",Revenue,Corona Energy Retail 2 Ltd,67249
Chorley Borough Council,http://statistics.data.gov.uk/id/local-authority/30UE,Democratic Represent and  Mgnt,1007,GROW - Commercial & Property,Gas,20014,Energy Costs,5006,Astley coach house,07/10/2022,172942,426.84,Revenue,Corona Energy Retail 2 Ltd,67249
Chorley Borough Council,http://statistics.data.gov.uk/id/local-authority/30UE,Democratic Represent and  Mgnt,1007,GROW - Commercial & Property,Gas,20014,Energy Costs,5006,Apr 22 - May 22,21/10/2022,173142,"25,120.19",Revenue,Corona Energy Retail 2 Ltd,67249
Chorley Borough Council,http://statistics.data.gov.uk/id/local-authority/30UE,Democratic Represent and  Mgnt,1007,GROW - Commercial & Property,Gas,20014,Energy Costs,5006,May 22 - Jun 22,21/10/2022,173143,"20,019.53",Revenue,Corona Energy Retail 2 Ltd,67249
Chorley Borough Council,http://statistics.data.gov.uk/id/local-authority/30UE,Capital,Capital,GROW - Commercial & Property,Other Capital Related Fees,3024,Capital Expenditure,Capital,Mar-22,21/10/2022,173146,671.00,Capital,Corona Energy Retail 2 Ltd,67249
Chorley Borough Council,http://statistics.data.gov.uk/id/local-authority/30UE,Business Support,1095,GROW - Commercial & Property,Gas,20014,Energy Costs,5006,Apr 22- May 22,21/10/2022,173147,"6,092.38",Revenue,Corona Energy Retail 2 Ltd,67249
Chorley Borough Council,http://statistics.data.gov.uk/id/local-authority/30UE,Business Support,1095,GROW - Commercial & Property,Gas,20014,Energy Costs,5006,May 22 - Jun 22,21/10/2022,173148,"4,577.78",Revenue,Corona Energy Retail 2 Ltd,67249
Chorley Borough Council,http://statistics.data.gov.uk/id/local-authority/30UE,Recreation & Sport,1037,GROW - Commercial & Property,Gas,20014,Energy Costs,5006,Mar 22 - Apr 22,21/10/2022,173149,"1,999.29",Revenue,Corona Energy Retail 2 Ltd,67249
Chorley Borough Council,http://statistics.data.gov.uk/id/local-authority/30UE,Recreation & Sport,1037,GROW - Commercial & Property,Gas,20014,Energy Costs,5006,Mar 22 - Apr 22,21/10/2022,173150,"1,836.17",Revenue,Corona Energy Retail 2 Ltd,67249
Chorley Borough Council,http://statistics.data.gov.uk/id/local-authority/30UE,Democratic Represent and  Mgnt,1007,GROW - Commercial & Property,Gas,20014,Energy Costs,5006,Mar 22 - Apr 22,21/10/2022,173151,"6,919.48",Revenue,Corona Energy Retail 2 Ltd,67249
Chorley Borough Council,http://statistics.data.gov.uk/id/local-authority/30UE,Business Support,1095,GROW - Commercial & Property,Gas,20014,Energy Costs,5006,Mar 22 - Apr 22,21/10/2022,173153,"1,896.95",Revenue,Corona Energy Retail 2 Ltd,67249
Chorley Borough Council,http://statistics.data.gov.uk/id/local-authority/30UE,Recreation & Sport,1037,GROW - Commercial & Property,Gas,20014,Energy Costs,5006,Mar 22 - Apr 22,21/10/2022,173154,"1,338.11",Revenue,Corona Energy Retail 2 Ltd,67249
Chorley Borough Council,http://statistics.data.gov.uk/id/local-authority/30UE,Recreation & Sport,1037,GROW - Commercial & Property,Gas,20014,Energy Costs,5006,Apr 22 - May 22,21/10/2022,173155,"2,301.18",Revenue,Corona Energy Retail 2 Ltd,67249
Chorley Borough Council,http://statistics.data.gov.uk/id/local-authority/30UE,Recreation & Sport,1037,GROW - Commercial & Property,Gas,20014,Energy Costs,5006,May 22 - Jun 22,21/10/2022,173156,"3,179.08",Revenue,Corona Energy Retail 2 Ltd,67249
Chorley Borough Council,http://statistics.data.gov.uk/id/local-authority/30UE,Recreation & Sport,1037,GROW - Commercial & Property,Gas,20014,Energy Costs,5006,Apr 22 - May 22,21/10/2022,173157,"6,897.91",Revenue,Corona Energy Retail 2 Ltd,67249
Chorley Borough Council,http://statistics.data.gov.uk/id/local-authority/30UE,Homelessness,1075,GROW - Commercial & Property,Gas,20014,Energy Costs,5006,Sep 21 - Oct 21,21/10/2022,173158,439.78,Revenue,Corona Energy Retail 2 Ltd,67249
Chorley Borough Council,http://statistics.data.gov.uk/id/local-authority/30UE,Central Support Services,1009,GROW - Commercial & Property,Gas,20014,Energy Costs,5006,Sep 21 - Oct 21,21/10/2022,173168,481.87,Revenue,Corona Energy Retail 2 Ltd,67249
Chorley Borough Council,http://statistics.data.gov.uk/id/local-authority/30UE,Democratic Represent and  Mgnt,1007,GROW - Commercial & Property,Gas,20014,Energy Costs,5006,Sep 21 - Oct 21,21/10/2022,173180,325.13,Revenue,Corona Energy Retail 2 Ltd,67249
Chorley Borough Council,http://statistics.data.gov.uk/id/local-authority/30UE,Democratic Represent and  Mgnt,1007,GROW - Commercial & Property,Gas,20014,Energy Costs,5006,Sep 21 - Oct 21,21/10/2022,173181,258.66,Revenue,Corona Energy Retail 2 Ltd,67249
Chorley Borough Council,http://statistics.data.gov.uk/id/local-authority/30UE,Recreation & Sport,1037,GROW - Commercial & Property,Gas,20014,Energy Costs,5006,May 22 - Jun 22,21/10/2022,173191,"6,338.57",Revenue,Corona Energy Retail 2 Ltd,67249
Chorley Borough Council,http://statistics.data.gov.uk/id/local-authority/30UE,Central Support Services,1009,CUST - Customer & Digital,Computer Equipment-Purchase,40098,Communication and Computing,5028,50 x jabra headsets,28/10/2022,172706,"1,750.00",Revenue,Corporate Direct (Europe) Ltd,22135
Chorley Borough Council,http://statistics.data.gov.uk/id/local-authority/30UE,Central Support Services,1009,EARL - Communities,Bailiffs' Fees,40071,Services,5027,3x GRT Evictions,07/10/2022,172724,"1,850.00",Revenue,COURT ENFORCEMENT SPECIALISTS LTD,77924
Chorley Borough Council,http://statistics.data.gov.uk/id/local-authority/30UE,Central Support Services,1009,CUST - Customer & Digital,Items For Resale,40027,"Equipment, Furniture & Materia",5023,Supply of wheels for wheeled bins.,28/10/2022,173340,265.00,Revenue,Craemer UK Ltd,64712
Chorley Borough Council,http://statistics.data.gov.uk/id/local-authority/30UE,Central Support Services,1009,CUST - Customer & Digital,Items For Resale,40027,"Equipment, Furniture & Materia",5023,240L Wheeled bin with Chorley logo and RFID chip fitted.,28/10/2022,173432,"6,420.00",Revenue,Craemer UK Ltd,64712
Chorley Borough Council,http://statistics.data.gov.uk/id/local-authority/30UE,Capital,Capital,EARL - Communities,Grants,3002,Capital Expenditure,Capital,22/00024/CAG,07/10/2022,172819,"5,164.00",Capital,D J Bathing,78482
Chorley Borough Council,http://statistics.data.gov.uk/id/local-authority/30UE,Unapportionable Central OHeads,1009,CUST - Customer & Digital,Agency Staff,13000,Direct Employee Expenses,5001,Temporary staff to provide additional cover within Customer Services,07/10/2022,172761,417.60,Revenue,Daniel Adams Recruitment,78104
Chorley Borough Council,http://statistics.data.gov.uk/id/local-authority/30UE,Unapportionable Central OHeads,1009,CUST - Customer & Digital,Agency Staff,13000,Direct Employee Expenses,5001,Temporary staff to provide additional cover within Customer Services,07/10/2022,172762,522.00,Revenue,Daniel Adams Recruitment,78104
Chorley Borough Council,http://statistics.data.gov.uk/id/local-authority/30UE,Unapportionable Central OHeads,1009,CUST - Customer & Digital,Agency Staff,13000,Direct Employee Expenses,5001,Temporary staff to provide additional cover within Customer Services,07/10/2022,172763,522.00,Revenue,Daniel Adams Recruitment,78104
Chorley Borough Council,http://statistics.data.gov.uk/id/local-authority/30UE,Unapportionable Central OHeads,1009,CUST - Customer & Digital,Agency Staff,13000,Direct Employee Expenses,5001,Temporary staff to provide additional cover within Customer Services,07/10/2022,172945,417.60,Revenue,Daniel Adams Recruitment,78104
Chorley Borough Council,http://statistics.data.gov.uk/id/local-authority/30UE,Business Support,1095,GROW - Commercial & Property,Cleaning/Attendants' Services,20041,Cleaning and Domestic Supplies,5012,Per your week 27 invoice 654650 cleaning cover for 4 hours week ending 25/09/22 and 24 hours week ending 02/10/22,14/10/2022,172994,386.40,Revenue,Daniel Adams Recruitment,78104
Chorley Borough Council,http://statistics.data.gov.uk/id/local-authority/30UE,Business Support,1095,GROW - Commercial & Property,Cleaning/Attendants' Services,20041,Cleaning and Domestic Supplies,5012,"Per your week 28 invoice 654668, cleaning cover for weekending 09/10/22. 24 hours ",28/10/2022,173275,331.20,Revenue,Daniel Adams Recruitment,78104
Chorley Borough Council,http://statistics.data.gov.uk/id/local-authority/30UE,Business Support,1095,GROW - Commercial & Property,Cleaning/Attendants' Services,20041,Cleaning and Domestic Supplies,5012,"Per your week 29 invoice 654697, week ending 16/10/22. 20 hours cleaning cover ",28/10/2022,173325,276.00,Revenue,Daniel Adams Recruitment,78104
Chorley Borough Council,http://statistics.data.gov.uk/id/local-authority/30UE,Service Management & Support,1009,CUST - Customer & Digital,Supplies - Workshop,40246,"Equipment, Furniture & Materia",5023,Order ref 238518Document 057900,07/10/2022,171169,383.66,Revenue,Dick Leigh,17138
Chorley Borough Council,http://statistics.data.gov.uk/id/local-authority/30UE,Service Management & Support,1009,CUST - Customer & Digital,Supplies - Workshop,40246,"Equipment, Furniture & Materia",5023,Order ref 238600 Document 057899,07/10/2022,171175,256.85,Revenue,Dick Leigh,17138
Chorley Borough Council,http://statistics.data.gov.uk/id/local-authority/30UE,Planning Policy,1092,PLAN - Planning & Development,Consultants` Fees,40077,Services,5027,Central Lancashire Housing Needs Study,14/10/2022,172852,"8,095.58",Revenue,DLP (Consulting Group) Ltd,84490
Chorley Borough Council,http://statistics.data.gov.uk/id/local-authority/30UE,Capital,Capital,PLAN - Planning & Development,Main Contractor,3007,Capital Expenditure,Capital,Pitch Maintenance King George V Playing Fields 2022/2023,28/10/2022,172793,"8,827.70",Capital,Duncan Ross Ltd,76803
Chorley Borough Council,http://statistics.data.gov.uk/id/local-authority/30UE,Capital,Capital,PLAN - Planning & Development,Main Contractor,3007,Capital Expenditure,Capital,EPC Grant payment,07/10/2022,172820,"23,254.00",Capital,Eccleston Parish Council,17027
Chorley Borough Council,http://statistics.data.gov.uk/id/local-authority/30UE,Central Support Services,1009,GROW - Commercial & Property,Professional Fees,40063,Services,5027,"Streetscene relocation options study - Bengal St Depot, Chorley",07/10/2022,171206,"4,925.68",Revenue,Egniol Environmental Ltd,78236
Chorley Borough Council,http://statistics.data.gov.uk/id/local-authority/30UE,Homelessness,1075,GROW - Commercial & Property,Laundry,40042,"Clothing, Uniforms and Laundry",5025,For the laundry services provided to Cotswold House,07/10/2022,172895,927.17,Revenue,Elis UK Ltd,20799
Chorley Borough Council,http://statistics.data.gov.uk/id/local-authority/30UE,Business Support,1095,GROW - Commercial & Property,Internet Charges,40104,Communication and Computing,5028,"``Call Off`` order for: Operate Growth, April 2022 to March 2023 Connect Growth, April 2022 to March 2023 ",07/10/2022,172846,345.83,Revenue,Essensys Ltd,77836
Chorley Borough Council,http://statistics.data.gov.uk/id/local-authority/30UE,Business Support,1095,GROW - Commercial & Property,Internet Charges,40104,Communication and Computing,5028,"``Call Off`` order for: Operate Growth, April 2022 to March 2023 Connect Growth, April 2022 to March 2023 ",21/10/2022,173114,"2,950.00",Revenue,Essensys Ltd,77836
Chorley Borough Council,http://statistics.data.gov.uk/id/local-authority/30UE,Central Support Services,1009,GOVN - Policy & Governance,Training Course Fees,17010,Indirect Employee Expenses,5002,Rescue Training for 6 delegates.,07/10/2022,172759,895.00,Revenue,Eurosafe Solutions Limited,66302
Chorley Borough Council,http://statistics.data.gov.uk/id/local-authority/30UE,Unapportionable Central OHeads,1009,GROW - Commercial & Property,Planned Maintenance,20006,Repairs Maintenance & Alts,5005,Town Hall Man Safe system annual checks,14/10/2022,173120,550.00,Revenue,Eurosafe Solutions Limited,66302
Chorley Borough Council,http://statistics.data.gov.uk/id/local-authority/30UE,Unapportionable Central OHeads,1009,GROW - Commercial & Property,Planned Maintenance,20006,Repairs Maintenance & Alts,5005,Town hall - Flagpole repairs and inspection retest Flagpole fails due to missing halyard cleat. ,28/10/2022,173231,522.00,Revenue,Eurosafe Solutions Limited,66302
Chorley Borough Council,http://statistics.data.gov.uk/id/local-authority/30UE,Capital,Capital,PLAN - Planning & Development,Main Contractor,3007,Capital Expenditure,Capital,"3 container grown Silver Birch trees, 6 stakes and 3 tree ties (to be planted by Chorley Council on land) ",28/10/2022,173307,301.95,Capital,Everglades Nurseries Ltd,20202
Chorley Borough Council,http://statistics.data.gov.uk/id/local-authority/30UE,Capital,Capital,GROW - Commercial & Property,Consultants Fees,3025,Capital Expenditure,Capital,Unit works for KA Distribution,14/10/2022,172732,"3,515.00",Capital,Fletcher Rae (UK) Limited,80432
Chorley Borough Council,http://statistics.data.gov.uk/id/local-authority/30UE,Central Support Services,1009,EARL - Communities,Protective Clothing,40040,"Clothing, Uniforms and Laundry",5025,"x3 - Comark KM814FS, Infrared Food Thermometer with laser sighting  x4 - Comark P125W/82 ",07/10/2022,170785,438.65,Revenue,Food Safety Direct Ltd,21274
Chorley Borough Council,http://statistics.data.gov.uk/id/local-authority/30UE,Central Support Services,1009,EARL - Communities,Core Funding Grants,40133,Grants and Subscriptions,5031,Core small funding grant,07/10/2022,172804,500.00,Revenue,Friends of Adlington Library,76734
Chorley Borough Council,http://statistics.data.gov.uk/id/local-authority/30UE,Tourism,1039,GOVN - Policy & Governance,Misc Expenses,40200,Miscellaneous Expenses,5034,CFS prize money 2022,07/10/2022,172813,250.00,Revenue,Friends Thru Flowers,85668
Chorley Borough Council,http://statistics.data.gov.uk/id/local-authority/30UE,Central Support Services,1009,CUST - Customer & Digital,Professional Fees,40063,Services,5027,Garden waste subscription payments 2022/23 for Chorley and South Ribble,28/10/2022,170902,709.23,Revenue,GoCardless,77457
Chorley Borough Council,http://statistics.data.gov.uk/id/local-authority/30UE,Capital,Capital,GROW - Commercial & Property,Consultants Fees,3025,Capital Expenditure,Capital,Client Side PM Support as per fee proposal A.2-001 - Project Alker - Strawberry Meadows Business Park,14/10/2022,172720,"3,400.00",Capital,Gosling Consulting Limited,78380
Chorley Borough Council,http://statistics.data.gov.uk/id/local-authority/30UE,Capital,Capital,GROW - Commercial & Property,Consultants Fees,3025,Capital Expenditure,Capital,Tatton Consultancy Fees (July 2022) as requested by NAME REDACTED,14/10/2022,173020,"2,018.75",Capital,Gosling Consulting Limited,78380
Chorley Borough Council,http://statistics.data.gov.uk/id/local-authority/30UE,Central Support Services,1009,PLAN - Planning & Development,Vandalism Repairs,20005,Repairs Maintenance & Alts,5005,Graffiti removal contract August 2022 ongoing,28/10/2022,172758,955.00,Revenue,Graffiti Away Ltd,78340
Chorley Borough Council,http://statistics.data.gov.uk/id/local-authority/30UE,Business Support,1095,GROW - Commercial & Property,Stationery,40050,"Printing, Stationery & General",5026,"Kyocera Toner, Black KE03714 TK-5230K x 1 ",28/10/2022,173241,65.95,Revenue,Grafton Projects Limited,76545
Chorley Borough Council,http://statistics.data.gov.uk/id/local-authority/30UE,Business Support,1095,GROW - Commercial & Property,Stationery,40050,"Printing, Stationery & General",5026,"Kyocera Toner Magenta KE03738, TK-5230M x 1 ",28/10/2022,173241,92.75,Revenue,Grafton Projects Limited,76545
Chorley Borough Council,http://statistics.data.gov.uk/id/local-authority/30UE,Business Support,1095,GROW - Commercial & Property,Stationery,40050,"Printing, Stationery & General",5026,"Kyocera Toner Yellow KE03726, TK5230Y x 1 ",28/10/2022,173241,92.75,Revenue,Grafton Projects Limited,76545
Chorley Borough Council,http://statistics.data.gov.uk/id/local-authority/30UE,Business Support,1095,GROW - Commercial & Property,Stationery,40050,"Printing, Stationery & General",5026,"Kyocera toner Cyan KE03750, TK-5230C x 1 ",28/10/2022,173241,92.75,Revenue,Grafton Projects Limited,76545
Chorley Borough Council,http://statistics.data.gov.uk/id/local-authority/30UE,Corporate Management,1008,GOVN - Policy & Governance,Refreshments,40036,Catering,5024,Greenhalghs People Strategy Launch Biscuits,07/10/2022,172747,880.00,Revenue,Greenhalgh`s Craft Bakery,19061
Chorley Borough Council,http://statistics.data.gov.uk/id/local-authority/30UE,Central Support Services,1009,EARL - Communities,Core Funding Grants,40133,Grants and Subscriptions,5031,Core small funding grant,07/10/2022,172801,300.00,Revenue,Griffin Explorer Scout Unit,85637
Chorley Borough Council,http://statistics.data.gov.uk/id/local-authority/30UE,Service Management & Support,1009,CUST - Customer & Digital,Supplies-Grounds Maintenance,40025,"Equipment, Furniture & Materia",5023,MC-21904.05 FLAIL F14 XZ-10 DPD CARRIAGE-OVERSIZE,28/10/2022,173250,355.00,Revenue,Halse South West Ltd,76890
Chorley Borough Council,http://statistics.data.gov.uk/id/local-authority/30UE,Business Support,1095,GOVN - Policy & Governance,Grants To Other Organisations,40127,Grants and Subscriptions,5031,Shop front grant,07/10/2022,171209,"10,000.00",Revenue,Hannah Jayne Jones,85511
Chorley Borough Council,http://statistics.data.gov.uk/id/local-authority/30UE,Economic Development,1096,GROW - Commercial & Property,Agency Staff,13000,Direct Employee Expenses,5001,NAME REDACTED - 24 week contract - Service Lead 50% Chorley Borough Council  ,07/10/2022,170689,"2,587.50",Revenue,Hays Senior Finance,20078
Chorley Borough Council,http://statistics.data.gov.uk/id/local-authority/30UE,Economic Development,1096,GROW - Commercial & Property,Agency Staff,13000,Direct Employee Expenses,5001,NAME REDACTED - 24 week contract - Service Lead 50% Chorley Borough Council  ,07/10/2022,170690,"2,587.50",Revenue,Hays Senior Finance,20078
Chorley Borough Council,http://statistics.data.gov.uk/id/local-authority/30UE,Economic Development,1096,GROW - Commercial & Property,Agency Staff,13000,Direct Employee Expenses,5001,NAME REDACTED - 24 week contract - Service Lead 50% Chorley Borough Council  ,07/10/2022,170940,"2,760.00",Revenue,Hays Senior Finance,20078
Chorley Borough Council,http://statistics.data.gov.uk/id/local-authority/30UE,Economic Development,1096,GROW - Commercial & Property,Agency Staff,13000,Direct Employee Expenses,5001,NAME REDACTED - 24 week contract - Service Lead 50% Chorley Borough Council  ,07/10/2022,170941,"2,346.00",Revenue,Hays Senior Finance,20078
Chorley Borough Council,http://statistics.data.gov.uk/id/local-authority/30UE,Unapportionable Central OHeads,1009,GROW - Commercial & Property,General Repairs - Reactive,20004,Repairs Maintenance & Alts,5005,Astley Hall and Buildings - Painting and Decorating,07/10/2022,170533,680.00,Revenue,Henry Nightingale & Son,17923
Chorley Borough Council,http://statistics.data.gov.uk/id/local-authority/30UE,Unapportionable Central OHeads,1009,GROW - Commercial & Property,General Repairs - Reactive,20004,Repairs Maintenance & Alts,5005,Toilets  - Painting and Decorating,07/10/2022,170545,550.00,Revenue,Henry Nightingale & Son,17923
Chorley Borough Council,http://statistics.data.gov.uk/id/local-authority/30UE,Unapportionable Central OHeads,1009,GOVN - Policy & Governance,Misc Expenses,40200,Miscellaneous Expenses,5034,healthcare PSA settlement,07/10/2022,170864,"8,731.70",Revenue,HM Revenue & Customs,21907
Chorley Borough Council,http://statistics.data.gov.uk/id/local-authority/30UE,Corporate Management,1008,EARL - Communities,Other Contributions,40145,Grants and Subscriptions,5031,Delivery of support for residents experiencing financial hardship,28/10/2022,173077,"5,000.00",Revenue,Home-Start Central Lancashire Ltd,20585
Chorley Borough Council,http://statistics.data.gov.uk/id/local-authority/30UE,Central Support Services,1009,CUST - Customer & Digital,Telephones - Other,40085,Communication and Computing,5028,Hybrit SIP charges Sept 22,21/10/2022,171165,585.00,Revenue,Hybrit LLP,77925
Chorley Borough Council,http://statistics.data.gov.uk/id/local-authority/30UE,Corporate Management,1008,GOVN - Policy & Governance,Other Fees,40212,Miscellaneous Expenses,5034,Subsidy for the provision of a meals on wheels service in Chorley up to 11 Sept 2022,07/10/2022,171099,"1,971.38",Revenue,I Care GB Ltd,77247
Chorley Borough Council,http://statistics.data.gov.uk/id/local-authority/30UE,Elections,1012,GOVN - Policy & Governance,Computer - Support Services,40111,Communication and Computing,5028,Idox quotation reference - Annual Canvass 2022 - 21.48373,14/10/2022,172768,"4,612.03",Revenue,IDOX Software Limited,17542
Chorley Borough Council,http://statistics.data.gov.uk/id/local-authority/30UE,Central Support Services,1009,GOVN - Policy & Governance,Misc Expenses,40200,Miscellaneous Expenses,5034,Iken Case Management & Time Recording  7 licences Iken See Generic File Viewer  7 licences ,28/10/2022,173290,"3,166.80",Revenue,Iken Business Limited,22068
Chorley Borough Council,http://statistics.data.gov.uk/id/local-authority/30UE,Planning Policy,1092,PLAN - Planning & Development,Professional Fees,14011,Direct Employee Expenses,5001,To act as chair at the Central Lancashire Local Plan Developers Forum 26th September,07/10/2022,172878,"1,000.00",Revenue,iMeg Partnership,83966
Chorley Borough Council,http://statistics.data.gov.uk/id/local-authority/30UE,Capital,Capital,EARL - Communities,Grants,3002,Capital Expenditure,Capital,ADDRESS REDACTED,07/10/2022,169186,900.00,Capital,Jigsaw Homes (North),85185
Chorley Borough Council,http://statistics.data.gov.uk/id/local-authority/30UE,Business Support,1095,GROW - Commercial & Property,General Repairs - Reactive,20004,Repairs Maintenance & Alts,5005,Market Walk Ext Access platform hire with operator Spider access and operator out of hours at calico lounge roof chorley,28/10/2022,173233,450.00,Revenue,JJL Windows and Exterior Cleaning,80931
Chorley Borough Council,http://statistics.data.gov.uk/id/local-authority/30UE,Business Support,1095,GROW - Commercial & Property,Tools & Equipment - Purchase,40003,"Equipment, Furniture & Materia",5023,For the maintenance and services provided at Primrose gardens,28/10/2022,173291,333.09,Revenue,JLA Total Care LTD,78420
Chorley Borough Council,http://statistics.data.gov.uk/id/local-authority/30UE,Service Management & Support,1009,CUST - Customer & Digital,Supplies-Grounds Maintenance,40025,"Equipment, Furniture & Materia",5023,25@ 900mm x 100mm x 100mm Birdsmouth,28/10/2022,173025,150.00,Revenue,John H Mayor & Sons Ltd,16635
Chorley Borough Council,http://statistics.data.gov.uk/id/local-authority/30UE,Service Management & Support,1009,CUST - Customer & Digital,Supplies-Grounds Maintenance,40025,"Equipment, Furniture & Materia",5023,25 of 100mm knee rail straps,28/10/2022,173025,37.50,Revenue,John H Mayor & Sons Ltd,16635
Chorley Borough Council,http://statistics.data.gov.uk/id/local-authority/30UE,Service Management & Support,1009,CUST - Customer & Digital,Supplies-Grounds Maintenance,40025,"Equipment, Furniture & Materia",5023,1 roll of terram,28/10/2022,173025,53.13,Revenue,John H Mayor & Sons Ltd,16635
Chorley Borough Council,http://statistics.data.gov.uk/id/local-authority/30UE,Service Management & Support,1009,CUST - Customer & Digital,Supplies-Grounds Maintenance,40025,"Equipment, Furniture & Materia",5023,25 of 450mm x  50mm x 50mm wooden pegs,28/10/2022,173025,16.25,Revenue,John H Mayor & Sons Ltd,16635
Chorley Borough Council,http://statistics.data.gov.uk/id/local-authority/30UE,Capital,Capital,PLAN - Planning & Development,Main Contractor,3007,Capital Expenditure,Capital,Construction of a Sports Pavilion at Wigan Lane Playing Fields with associated infrastructure and landscaping ,28/10/2022,173305,"126,786.40",Capital,John Wade Groundworks Ltd,76676
Chorley Borough Council,http://statistics.data.gov.uk/id/local-authority/30UE,Capital,Capital,PLAN - Planning & Development,Main Contractor,3007,Capital Expenditure,Capital,Construction of footpath at West Way Sports Hub,28/10/2022,173314,"19,936.00",Capital,John Wade Groundworks Ltd,76676
Chorley Borough Council,http://statistics.data.gov.uk/id/local-authority/30UE,Capital,Capital,GROW - Commercial & Property,Consultants Fees,3025,Capital Expenditure,Capital,Extended MEP Consultancy Services to RIBA Stage 7 for the Alker Lane development,14/10/2022,169142,"7,000.00",Capital,JRB Environmental Design Limited,80610
Chorley Borough Council,http://statistics.data.gov.uk/id/local-authority/30UE,Capital,Capital,PLAN - Planning & Development,Main Contractor,3007,Capital Expenditure,Capital,"Technical Design information at stage 4, with the additional services of:  Architectural and Structural changes to the design",28/10/2022,167554,"2,750.00",Capital,JYM Partnership LLP,18179
Chorley Borough Council,http://statistics.data.gov.uk/id/local-authority/30UE,Capital,Capital,PLAN - Planning & Development,Main Contractor,3007,Capital Expenditure,Capital,King George V Playing Fields Pavilion - Stage 5 (invoiced monthly during Construction phase)   - ,28/10/2022,173116,"4,936.00",Capital,JYM Partnership LLP,18179
Chorley Borough Council,http://statistics.data.gov.uk/id/local-authority/30UE,Service Management & Support,1009,CUST - Customer & Digital,Supplies-Grounds Maintenance,40025,"Equipment, Furniture & Materia",5023,Quantity x 12 Product 200-000680 5 Kilos TALON Wax Blocks0051192 ,28/10/2022,173333,606.96,Revenue,Killgerm Chemicals Ltd,16879
Chorley Borough Council,http://statistics.data.gov.uk/id/local-authority/30UE,Unapportionable Central OHeads,1009,GOVN - Policy & Governance,Publicity - Advertising,40157,Miscellaneous Expenses,5034,1 page for Check Out Chorley and Discover South Ribble in Welcome to Liverpool Book,28/10/2022,173338,750.00,Revenue,Kingfisher Visitor Guides,78152
Chorley Borough Council,http://statistics.data.gov.uk/id/local-authority/30UE,Precepts and Collection Fund,Precepts,GOVN - Policy & Governance,LCC Precept,2009,Precepts & Collection Fund,Precept,LCC CTax precept,24/10/2022,170862,"5,841,829.00",Revenue,Lancashire County Council,18386
Chorley Borough Council,http://statistics.data.gov.uk/id/local-authority/30UE,Collection Fund Revenue Accoun,,GOVN - Policy & Governance,NNDR County Share,2036,Precepts & Collection Fund,Precept,LCC BRates precepts,24/10/2022,170862,"154,328.00",Revenue,Lancashire County Council,18386
Chorley Borough Council,http://statistics.data.gov.uk/id/local-authority/30UE,Tourism,1039,GOVN - Policy & Governance,Misc Expenses,40200,Miscellaneous Expenses,5034,Application for Temporary Traffic Regulation Order Chorley Flower Show 2022 Temporary One Way System - Chancery Road,28/10/2022,171111,"1,223.60",Revenue,Lancashire County Council,20027
Chorley Borough Council,http://statistics.data.gov.uk/id/local-authority/30UE,Unapportionable Central OHeads,1009,GOVN - Policy & Governance,Misc Expenses,40200,Miscellaneous Expenses,5034,Application for Temporary Traffic Regulation Order Picnic in the Park Temporary One Way System - Chancery Road,28/10/2022,171115,"1,223.60",Revenue,Lancashire County Council,20027
Chorley Borough Council,http://statistics.data.gov.uk/id/local-authority/30UE,Unapportionable Central OHeads,1009,GOVN - Policy & Governance,Exhibitions & Special Events,40158,Miscellaneous Expenses,5034,Road Closure Order for Chorley 10k,28/10/2022,171117,"1,920.28",Revenue,Lancashire County Council,20027
Chorley Borough Council,http://statistics.data.gov.uk/id/local-authority/30UE,Capital,Capital,EARL - Communities,Grants,3002,Capital Expenditure,Capital,21/00053/DFG,07/10/2022,172817,"3,422.00",Capital,Lancashire County Council,17758
Chorley Borough Council,http://statistics.data.gov.uk/id/local-authority/30UE,Central Support Services,1009,CUST - Customer & Digital,Clinical Waste Collection,50007,Private Contractors,5042,Domestic clinical waste collections 2022,07/10/2022,171124,"2,613.56",Revenue,Lancashire Environmental Services,82309
Chorley Borough Council,http://statistics.data.gov.uk/id/local-authority/30UE,Central Support Services,1009,CUST - Customer & Digital,Clinical Waste Collection,50007,Private Contractors,5042,Domestic clinical waste collections 2022,28/10/2022,173035,"1,962.54",Revenue,Lancashire Environmental Services,82309
Chorley Borough Council,http://statistics.data.gov.uk/id/local-authority/30UE,Unapportionable Central OHeads,1009,GROW - Commercial & Property,Planned Maintenance,20006,Repairs Maintenance & Alts,5005,Union St  - Heating and Air Con Planned Maintenance and remedials,21/10/2022,173163,729.00,Revenue,Lancashire Gas Services Ltd,78192
Chorley Borough Council,http://statistics.data.gov.uk/id/local-authority/30UE,Unapportionable Central OHeads,1009,GROW - Commercial & Property,Planned Maintenance,20006,Repairs Maintenance & Alts,5005,Primrose  - Heating and Air Con Planned Maintenance and remedials,21/10/2022,173164,456.00,Revenue,Lancashire Gas Services Ltd,78192
Chorley Borough Council,http://statistics.data.gov.uk/id/local-authority/30UE,Unapportionable Central OHeads,1009,GROW - Commercial & Property,Planned Maintenance,20006,Repairs Maintenance & Alts,5005,Union St  - Heating and Air Con Planned Maintenance and remedials,21/10/2022,173165,275.76,Revenue,Lancashire Gas Services Ltd,78192
Chorley Borough Council,http://statistics.data.gov.uk/id/local-authority/30UE,Unapportionable Central OHeads,1009,GOVN - Policy & Governance,Pensions Increase Act Payments,18005,Indirect Employee Expenses,5002,CAY Aug 22,24/10/2022,170866,"17,150.72",Revenue,Lancashire Pensions Services DD ONLY,16696
Chorley Borough Council,http://statistics.data.gov.uk/id/local-authority/30UE,Unapportionable Central OHeads,1009,GOVN - Policy & Governance,Pensions Increase Act Payments,18005,Indirect Employee Expenses,5002,CAY July 22,24/10/2022,171213,"17,289.11",Revenue,Lancashire Pensions Services DD ONLY,16696
Chorley Borough Council,http://statistics.data.gov.uk/id/local-authority/30UE,Unapportionable Central OHeads,1009,GOVN - Policy & Governance,Pensions Increase Act Payments,18005,Indirect Employee Expenses,5002,CAY June 22,24/10/2022,171214,"17,400.26",Revenue,Lancashire Pensions Services DD ONLY,16696
Chorley Borough Council,http://statistics.data.gov.uk/id/local-authority/30UE,Unapportionable Central OHeads,1009,GOVN - Policy & Governance,Pensions Increase Act Payments,18005,Indirect Employee Expenses,5002,CAY APR 22,24/10/2022,171215,"16,882.30",Revenue,Lancashire Pensions Services DD ONLY,16696
Chorley Borough Council,http://statistics.data.gov.uk/id/local-authority/30UE,Precepts and Collection Fund,Precepts,GOVN - Policy & Governance,LCFA Precept,2011,Precepts & Collection Fund,Precept,LCFA CTax precept,24/10/2022,170863,"297,967.00",Revenue,Lancs Combined Fire Authority,17768
Chorley Borough Council,http://statistics.data.gov.uk/id/local-authority/30UE,Collection Fund Revenue Accoun,,GOVN - Policy & Governance,NNDR Fire Share,2037,Precepts & Collection Fund,Precept,LCFA BRates precepts,24/10/2022,170863,"17,147.00",Revenue,Lancs Combined Fire Authority,17768
Chorley Borough Council,http://statistics.data.gov.uk/id/local-authority/30UE,Planning Policy,1092,PLAN - Planning & Development,Consultants` Fees,40077,Services,5027,"Assistance in progressing work on the Central Lancashire Local Plan Land Use Study, and Development of Policies ",21/10/2022,172736,"57,974.50",Revenue,Land Use Consultants (LUC) Ltd,81849
Chorley Borough Council,http://statistics.data.gov.uk/id/local-authority/30UE,Business Support,1095,GROW - Commercial & Property,Planned Maintenance,20006,Repairs Maintenance & Alts,5005,Strawberry Fields - Lightning equipment annual service,28/10/2022,173236,255.00,Revenue,Lightning Consultants (UK) Ltd,17446
Chorley Borough Council,http://statistics.data.gov.uk/id/local-authority/30UE,Business Support,1095,GROW - Commercial & Property,Planned Maintenance,20006,Repairs Maintenance & Alts,5005,Market Walk Ext - Lightning equipment annual service,28/10/2022,173236,245.00,Revenue,Lightning Consultants (UK) Ltd,17446
Chorley Borough Council,http://statistics.data.gov.uk/id/local-authority/30UE,Unapportionable Central OHeads,1009,GROW - Commercial & Property,Planned Maintenance,20006,Repairs Maintenance & Alts,5005,Astley Hall - Lightning equipment annual service,28/10/2022,173372,250.00,Revenue,Lightning Consultants (UK) Ltd,17446
Chorley Borough Council,http://statistics.data.gov.uk/id/local-authority/30UE,Unapportionable Central OHeads,1009,GROW - Commercial & Property,Planned Maintenance,20006,Repairs Maintenance & Alts,5005,Town Hall - Lightning equipment annual service,28/10/2022,173372,250.00,Revenue,Lightning Consultants (UK) Ltd,17446
Chorley Borough Council,http://statistics.data.gov.uk/id/local-authority/30UE,Unapportionable Central OHeads,1009,GROW - Commercial & Property,Planned Maintenance,20006,Repairs Maintenance & Alts,5005,Primrose Gardens - Lightning equipment annual service,28/10/2022,173372,270.00,Revenue,Lightning Consultants (UK) Ltd,17446
Chorley Borough Council,http://statistics.data.gov.uk/id/local-authority/30UE,Unapportionable Central OHeads,1009,GROW - Commercial & Property,Planned Maintenance,20006,Repairs Maintenance & Alts,5005,Friday St Car Park - Lightning equipment annual service,28/10/2022,173372,250.00,Revenue,Lightning Consultants (UK) Ltd,17446
Chorley Borough Council,http://statistics.data.gov.uk/id/local-authority/30UE,Capital,Capital,GROW - Commercial & Property,Main Contractor,3007,Capital Expenditure,Capital,Project management for Astley Restoration Project,07/10/2022,171189,"1,600.00",Capital,Linchpin Ltd,80779
Chorley Borough Council,http://statistics.data.gov.uk/id/local-authority/30UE,Corporate Management,1008,EARL - Communities,Other Contributions,40145,Grants and Subscriptions,5031,Delivery of support for residents experiencing financial hardship,28/10/2022,173354,"3,000.00",Revenue,Living Waters Storehouse,60925
Chorley Borough Council,http://statistics.data.gov.uk/id/local-authority/30UE,Business Support,1095,GROW - Commercial & Property,Stationery,40050,"Printing, Stationery & General",5026,staples,07/10/2022,172841,8.58,Revenue,Lyreco UK Ltd,17623
Chorley Borough Council,http://statistics.data.gov.uk/id/local-authority/30UE,Business Support,1095,GROW - Commercial & Property,Stationery,40050,"Printing, Stationery & General",5026,scissors,07/10/2022,172841,6.20,Revenue,Lyreco UK Ltd,17623
Chorley Borough Council,http://statistics.data.gov.uk/id/local-authority/30UE,Business Support,1095,GROW - Commercial & Property,Stationery,40050,"Printing, Stationery & General",5026,storage box,07/10/2022,172841,299.22,Revenue,Lyreco UK Ltd,17623
Chorley Borough Council,http://statistics.data.gov.uk/id/local-authority/30UE,Business Support,1095,GROW - Commercial & Property,Stationery,40050,"Printing, Stationery & General",5026,stapler,07/10/2022,172841,28.75,Revenue,Lyreco UK Ltd,17623
Chorley Borough Council,http://statistics.data.gov.uk/id/local-authority/30UE,Business Support,1095,GROW - Commercial & Property,Stationery,40050,"Printing, Stationery & General",5026,red pens,07/10/2022,172841,6.60,Revenue,Lyreco UK Ltd,17623
Chorley Borough Council,http://statistics.data.gov.uk/id/local-authority/30UE,Service Management & Support,1009,CUST - Customer & Digital,Grounds Maintenance Contractor,20043,Grounds Maintenance Costs,5013,Walkers Tree Services Invoice 64,28/10/2022,173446,"4,200.00",Revenue,M J Walker,62044
Chorley Borough Council,http://statistics.data.gov.uk/id/local-authority/30UE,Building Control,1090,PLAN - Planning & Development,Agency Staff,13000,Direct Employee Expenses,5001,Agency fees for NAME REDACTED Building Control Officer effective 03.10.2022 x 3 days for 2 weeks plus travel costs,28/10/2022,173227,"1,344.00",Revenue,Matchtech,77343
Chorley Borough Council,http://statistics.data.gov.uk/id/local-authority/30UE,Building Control,1090,PLAN - Planning & Development,Agency Staff,13000,Direct Employee Expenses,5001,Agency fees for NAME REDACTED Building Control Officer effective 29.09.2022 x 2 days for 2 weeks plus travel costs,28/10/2022,173228,840.00,Revenue,Matchtech,77343
Chorley Borough Council,http://statistics.data.gov.uk/id/local-authority/30UE,Central Support Services,1009,GOVN - Policy & Governance,Agency Staff,13000,Direct Employee Expenses,5001,NAME REDACTED  ,07/10/2022,172826,463.37,Revenue,Matrix SCM Ltd,22128
Chorley Borough Council,http://statistics.data.gov.uk/id/local-authority/30UE,Central Support Services,1009,GOVN - Policy & Governance,Agency Staff,13000,Direct Employee Expenses,5001,NAME REDACTED  ,14/10/2022,173126,599.44,Revenue,Matrix SCM Ltd,22128
Chorley Borough Council,http://statistics.data.gov.uk/id/local-authority/30UE,Unapportionable Central OHeads,1009,GROW - Commercial & Property,Planned Maintenance,20006,Repairs Maintenance & Alts,5005,Astley Hall and Buildings  - Monthly Water Monitoring 12 mths ,07/10/2022,170989,75.00,Revenue,Maxigiene Environmental Services Ltd,67160
Chorley Borough Council,http://statistics.data.gov.uk/id/local-authority/30UE,Unapportionable Central OHeads,1009,GROW - Commercial & Property,Planned Maintenance,20006,Repairs Maintenance & Alts,5005,Parks Buildings  - Monthly Water Monitoring 12 mths ,07/10/2022,170989,40.00,Revenue,Maxigiene Environmental Services Ltd,67160
Chorley Borough Council,http://statistics.data.gov.uk/id/local-authority/30UE,Unapportionable Central OHeads,1009,GROW - Commercial & Property,Planned Maintenance,20006,Repairs Maintenance & Alts,5005,Community Centres  - Monthly Water Monitoring 12 mths ,07/10/2022,170989,169.16,Revenue,Maxigiene Environmental Services Ltd,67160
Chorley Borough Council,http://statistics.data.gov.uk/id/local-authority/30UE,Unapportionable Central OHeads,1009,GROW - Commercial & Property,Planned Maintenance,20006,Repairs Maintenance & Alts,5005,wc`s   - Monthly Water Monitoring 12 mths ,07/10/2022,170989,65.00,Revenue,Maxigiene Environmental Services Ltd,67160
Chorley Borough Council,http://statistics.data.gov.uk/id/local-authority/30UE,Unapportionable Central OHeads,1009,GROW - Commercial & Property,Planned Maintenance,20006,Repairs Maintenance & Alts,5005,sports pitches and pavilions   - Monthly Water Monitoring 12 mths ,07/10/2022,170989,72.08,Revenue,Maxigiene Environmental Services Ltd,67160
Chorley Borough Council,http://statistics.data.gov.uk/id/local-authority/30UE,Unapportionable Central OHeads,1009,GROW - Commercial & Property,Planned Maintenance,20006,Repairs Maintenance & Alts,5005,Bengal St  - Monthly Water Monitoring 12 mths ,07/10/2022,170989,25.00,Revenue,Maxigiene Environmental Services Ltd,67160
Chorley Borough Council,http://statistics.data.gov.uk/id/local-authority/30UE,Unapportionable Central OHeads,1009,GROW - Commercial & Property,Planned Maintenance,20006,Repairs Maintenance & Alts,5005,chorley cemetery  - Monthly Water Monitoring 12 mths ,07/10/2022,170989,20.00,Revenue,Maxigiene Environmental Services Ltd,67160
Chorley Borough Council,http://statistics.data.gov.uk/id/local-authority/30UE,Community Development,1097,GROW - Commercial & Property,Planned Maintenance,20006,Repairs Maintenance & Alts,5005,CAB  35-39 Market St  - Monthly Water Monitoring 12 mths,07/10/2022,170989,20.00,Revenue,Maxigiene Environmental Services Ltd,67160
Chorley Borough Council,http://statistics.data.gov.uk/id/local-authority/30UE,Business Support,1095,GROW - Commercial & Property,Planned Maintenance,20006,Repairs Maintenance & Alts,5005,MW   Market Walk  - Monthly Water Monitoring 12 mths ,07/10/2022,170989,20.00,Revenue,Maxigiene Environmental Services Ltd,67160
Chorley Borough Council,http://statistics.data.gov.uk/id/local-authority/30UE,Unapportionable Central OHeads,1009,GROW - Commercial & Property,Planned Maintenance,20006,Repairs Maintenance & Alts,5005,Cotswold  - Monthly Water Monitoring 12 mths ,07/10/2022,170989,20.00,Revenue,Maxigiene Environmental Services Ltd,67160
Chorley Borough Council,http://statistics.data.gov.uk/id/local-authority/30UE,Unapportionable Central OHeads,1009,GROW - Commercial & Property,Planned Maintenance,20006,Repairs Maintenance & Alts,5005,Market  - Monthly Water Monitoring 12 mths ,07/10/2022,170989,20.00,Revenue,Maxigiene Environmental Services Ltd,67160
Chorley Borough Council,http://statistics.data.gov.uk/id/local-authority/30UE,Unapportionable Central OHeads,1009,GROW - Commercial & Property,Planned Maintenance,20006,Repairs Maintenance & Alts,5005,Primrose  - Monthly Water Monitoring 12 mths ,07/10/2022,170989,30.00,Revenue,Maxigiene Environmental Services Ltd,67160
Chorley Borough Council,http://statistics.data.gov.uk/id/local-authority/30UE,Business Support,1095,GROW - Commercial & Property,Planned Maintenance,20006,Repairs Maintenance & Alts,5005,Strawberry Fields  - Monthly Water Monitoring 12 mths ,07/10/2022,170989,30.00,Revenue,Maxigiene Environmental Services Ltd,67160
Chorley Borough Council,http://statistics.data.gov.uk/id/local-authority/30UE,Unapportionable Central OHeads,1009,GROW - Commercial & Property,Planned Maintenance,20006,Repairs Maintenance & Alts,5005,Town Hall  - Monthly Water Monitoring 12 mths ,07/10/2022,170989,25.00,Revenue,Maxigiene Environmental Services Ltd,67160
Chorley Borough Council,http://statistics.data.gov.uk/id/local-authority/30UE,Unapportionable Central OHeads,1009,GROW - Commercial & Property,Planned Maintenance,20006,Repairs Maintenance & Alts,5005,Union St  - Monthly Water Monitoring 12 mths ,07/10/2022,170989,25.00,Revenue,Maxigiene Environmental Services Ltd,67160
Chorley Borough Council,http://statistics.data.gov.uk/id/local-authority/30UE,Unapportionable Central OHeads,1009,GROW - Commercial & Property,Planned Maintenance,20006,Repairs Maintenance & Alts,5005,Westway  - Monthly Water Monitoring 12 mths ,07/10/2022,170989,30.00,Revenue,Maxigiene Environmental Services Ltd,67160
Chorley Borough Council,http://statistics.data.gov.uk/id/local-authority/30UE,Unapportionable Central OHeads,1009,GROW - Commercial & Property,Planned Maintenance,20006,Repairs Maintenance & Alts,5005,Astley Hall and Buildings  - Monthly Water Monitoring 12 mths ,07/10/2022,171041,75.00,Revenue,Maxigiene Environmental Services Ltd,67160
Chorley Borough Council,http://statistics.data.gov.uk/id/local-authority/30UE,Unapportionable Central OHeads,1009,GROW - Commercial & Property,Planned Maintenance,20006,Repairs Maintenance & Alts,5005,Parks Buildings  - Monthly Water Monitoring 12 mths ,07/10/2022,171041,40.00,Revenue,Maxigiene Environmental Services Ltd,67160
Chorley Borough Council,http://statistics.data.gov.uk/id/local-authority/30UE,Unapportionable Central OHeads,1009,GROW - Commercial & Property,Planned Maintenance,20006,Repairs Maintenance & Alts,5005,Community Centres  - Monthly Water Monitoring 12 mths ,07/10/2022,171041,169.16,Revenue,Maxigiene Environmental Services Ltd,67160
Chorley Borough Council,http://statistics.data.gov.uk/id/local-authority/30UE,Unapportionable Central OHeads,1009,GROW - Commercial & Property,Planned Maintenance,20006,Repairs Maintenance & Alts,5005,wc`s   - Monthly Water Monitoring 12 mths ,07/10/2022,171041,65.00,Revenue,Maxigiene Environmental Services Ltd,67160
Chorley Borough Council,http://statistics.data.gov.uk/id/local-authority/30UE,Unapportionable Central OHeads,1009,GROW - Commercial & Property,Planned Maintenance,20006,Repairs Maintenance & Alts,5005,sports pitches and pavilions   - Monthly Water Monitoring 12 mths,07/10/2022,171041,72.08,Revenue,Maxigiene Environmental Services Ltd,67160
Chorley Borough Council,http://statistics.data.gov.uk/id/local-authority/30UE,Unapportionable Central OHeads,1009,GROW - Commercial & Property,Planned Maintenance,20006,Repairs Maintenance & Alts,5005,Bengal St  - Monthly Water Monitoring 12 mths ,07/10/2022,171041,25.00,Revenue,Maxigiene Environmental Services Ltd,67160
Chorley Borough Council,http://statistics.data.gov.uk/id/local-authority/30UE,Unapportionable Central OHeads,1009,GROW - Commercial & Property,Planned Maintenance,20006,Repairs Maintenance & Alts,5005,chorley cemetery  - Monthly Water Monitoring 12 mths ,07/10/2022,171041,20.00,Revenue,Maxigiene Environmental Services Ltd,67160
Chorley Borough Council,http://statistics.data.gov.uk/id/local-authority/30UE,Community Development,1097,GROW - Commercial & Property,Planned Maintenance,20006,Repairs Maintenance & Alts,5005,CAB  35-39 Market St  - Monthly Water Monitoring 12 mths ,07/10/2022,171041,20.00,Revenue,Maxigiene Environmental Services Ltd,67160
Chorley Borough Council,http://statistics.data.gov.uk/id/local-authority/30UE,Business Support,1095,GROW - Commercial & Property,Planned Maintenance,20006,Repairs Maintenance & Alts,5005,MW   Market Walk  - Monthly Water Monitoring 12 mths ,07/10/2022,171041,20.00,Revenue,Maxigiene Environmental Services Ltd,67160
Chorley Borough Council,http://statistics.data.gov.uk/id/local-authority/30UE,Unapportionable Central OHeads,1009,GROW - Commercial & Property,Planned Maintenance,20006,Repairs Maintenance & Alts,5005,Cotswold  - Monthly Water Monitoring 12 mths ,07/10/2022,171041,20.00,Revenue,Maxigiene Environmental Services Ltd,67160
Chorley Borough Council,http://statistics.data.gov.uk/id/local-authority/30UE,Unapportionable Central OHeads,1009,GROW - Commercial & Property,Planned Maintenance,20006,Repairs Maintenance & Alts,5005,Market  - Monthly Water Monitoring 12 mths ,07/10/2022,171041,20.00,Revenue,Maxigiene Environmental Services Ltd,67160
Chorley Borough Council,http://statistics.data.gov.uk/id/local-authority/30UE,Unapportionable Central OHeads,1009,GROW - Commercial & Property,Planned Maintenance,20006,Repairs Maintenance & Alts,5005,Primrose  - Monthly Water Monitoring 12 mths ,07/10/2022,171041,30.00,Revenue,Maxigiene Environmental Services Ltd,67160
Chorley Borough Council,http://statistics.data.gov.uk/id/local-authority/30UE,Business Support,1095,GROW - Commercial & Property,Planned Maintenance,20006,Repairs Maintenance & Alts,5005,Strawberry Fields  - Monthly Water Monitoring 12 mths ,07/10/2022,171041,30.00,Revenue,Maxigiene Environmental Services Ltd,67160
Chorley Borough Council,http://statistics.data.gov.uk/id/local-authority/30UE,Unapportionable Central OHeads,1009,GROW - Commercial & Property,Planned Maintenance,20006,Repairs Maintenance & Alts,5005,Town Hall  - Monthly Water Monitoring 12 mths ,07/10/2022,171041,25.00,Revenue,Maxigiene Environmental Services Ltd,67160
Chorley Borough Council,http://statistics.data.gov.uk/id/local-authority/30UE,Unapportionable Central OHeads,1009,GROW - Commercial & Property,Planned Maintenance,20006,Repairs Maintenance & Alts,5005,Union St  - Monthly Water Monitoring 12 mths ,07/10/2022,171041,25.00,Revenue,Maxigiene Environmental Services Ltd,67160
Chorley Borough Council,http://statistics.data.gov.uk/id/local-authority/30UE,Unapportionable Central OHeads,1009,GROW - Commercial & Property,Planned Maintenance,20006,Repairs Maintenance & Alts,5005,Westway  - Monthly Water Monitoring 12 mths ,07/10/2022,171041,30.00,Revenue,Maxigiene Environmental Services Ltd,67160
Chorley Borough Council,http://statistics.data.gov.uk/id/local-authority/30UE,Unapportionable Central OHeads,1009,GROW - Commercial & Property,Planned Maintenance,20006,Repairs Maintenance & Alts,5005,Astley Hall and Buildings  - Monthly Water Monitoring 12 mths ,28/10/2022,173235,75.00,Revenue,Maxigiene Environmental Services Ltd,67160
Chorley Borough Council,http://statistics.data.gov.uk/id/local-authority/30UE,Unapportionable Central OHeads,1009,GROW - Commercial & Property,Planned Maintenance,20006,Repairs Maintenance & Alts,5005,Parks Buildings  - Monthly Water Monitoring 12 mths,28/10/2022,173235,40.00,Revenue,Maxigiene Environmental Services Ltd,67160
Chorley Borough Council,http://statistics.data.gov.uk/id/local-authority/30UE,Unapportionable Central OHeads,1009,GROW - Commercial & Property,Planned Maintenance,20006,Repairs Maintenance & Alts,5005,Community Centres  - Monthly Water Monitoring 12 mths ,28/10/2022,173235,169.16,Revenue,Maxigiene Environmental Services Ltd,67160
Chorley Borough Council,http://statistics.data.gov.uk/id/local-authority/30UE,Unapportionable Central OHeads,1009,GROW - Commercial & Property,Planned Maintenance,20006,Repairs Maintenance & Alts,5005,wc`s   - Monthly Water Monitoring 12 mths,28/10/2022,173235,65.00,Revenue,Maxigiene Environmental Services Ltd,67160
Chorley Borough Council,http://statistics.data.gov.uk/id/local-authority/30UE,Unapportionable Central OHeads,1009,GROW - Commercial & Property,Planned Maintenance,20006,Repairs Maintenance & Alts,5005,sports pitches and pavilions   - Monthly Water Monitoring 12 mths ,28/10/2022,173235,72.08,Revenue,Maxigiene Environmental Services Ltd,67160
Chorley Borough Council,http://statistics.data.gov.uk/id/local-authority/30UE,Unapportionable Central OHeads,1009,GROW - Commercial & Property,Planned Maintenance,20006,Repairs Maintenance & Alts,5005,Bengal St  - Monthly Water Monitoring 12 mths ,28/10/2022,173235,25.00,Revenue,Maxigiene Environmental Services Ltd,67160
Chorley Borough Council,http://statistics.data.gov.uk/id/local-authority/30UE,Unapportionable Central OHeads,1009,GROW - Commercial & Property,Planned Maintenance,20006,Repairs Maintenance & Alts,5005,chorley cemetery  - Monthly Water Monitoring 12 mths ,28/10/2022,173235,20.00,Revenue,Maxigiene Environmental Services Ltd,67160
Chorley Borough Council,http://statistics.data.gov.uk/id/local-authority/30UE,Community Development,1097,GROW - Commercial & Property,Planned Maintenance,20006,Repairs Maintenance & Alts,5005,CAB  35-39 Market St  - Monthly Water Monitoring 12 mths ,28/10/2022,173235,20.00,Revenue,Maxigiene Environmental Services Ltd,67160
Chorley Borough Council,http://statistics.data.gov.uk/id/local-authority/30UE,Business Support,1095,GROW - Commercial & Property,Planned Maintenance,20006,Repairs Maintenance & Alts,5005,MW   Market Walk  - Monthly Water Monitoring 12 mths ,28/10/2022,173235,20.00,Revenue,Maxigiene Environmental Services Ltd,67160
Chorley Borough Council,http://statistics.data.gov.uk/id/local-authority/30UE,Unapportionable Central OHeads,1009,GROW - Commercial & Property,Planned Maintenance,20006,Repairs Maintenance & Alts,5005,Cotswold  - Monthly Water Monitoring 12 mths ,28/10/2022,173235,20.00,Revenue,Maxigiene Environmental Services Ltd,67160
Chorley Borough Council,http://statistics.data.gov.uk/id/local-authority/30UE,Unapportionable Central OHeads,1009,GROW - Commercial & Property,Planned Maintenance,20006,Repairs Maintenance & Alts,5005,Market  - Monthly Water Monitoring 12 mths ,28/10/2022,173235,20.00,Revenue,Maxigiene Environmental Services Ltd,67160
Chorley Borough Council,http://statistics.data.gov.uk/id/local-authority/30UE,Unapportionable Central OHeads,1009,GROW - Commercial & Property,Planned Maintenance,20006,Repairs Maintenance & Alts,5005,Primrose  - Monthly Water Monitoring 12 mths,28/10/2022,173235,30.00,Revenue,Maxigiene Environmental Services Ltd,67160
Chorley Borough Council,http://statistics.data.gov.uk/id/local-authority/30UE,Business Support,1095,GROW - Commercial & Property,Planned Maintenance,20006,Repairs Maintenance & Alts,5005,Strawberry Fields  - Monthly Water Monitoring 12 mths ,28/10/2022,173235,30.00,Revenue,Maxigiene Environmental Services Ltd,67160
Chorley Borough Council,http://statistics.data.gov.uk/id/local-authority/30UE,Unapportionable Central OHeads,1009,GROW - Commercial & Property,Planned Maintenance,20006,Repairs Maintenance & Alts,5005,Town Hall  - Monthly Water Monitoring 12 mths ,28/10/2022,173235,25.00,Revenue,Maxigiene Environmental Services Ltd,67160
Chorley Borough Council,http://statistics.data.gov.uk/id/local-authority/30UE,Unapportionable Central OHeads,1009,GROW - Commercial & Property,Planned Maintenance,20006,Repairs Maintenance & Alts,5005,Union St  - Monthly Water Monitoring 12 mths ,28/10/2022,173235,25.00,Revenue,Maxigiene Environmental Services Ltd,67160
Chorley Borough Council,http://statistics.data.gov.uk/id/local-authority/30UE,Unapportionable Central OHeads,1009,GROW - Commercial & Property,Planned Maintenance,20006,Repairs Maintenance & Alts,5005,Westway  - Monthly Water Monitoring 12 mths ,28/10/2022,173235,30.00,Revenue,Maxigiene Environmental Services Ltd,67160
Chorley Borough Council,http://statistics.data.gov.uk/id/local-authority/30UE,Business Support,1095,PLAN - Planning & Development,Consultants` Fees,40077,Services,5027,Consultancy service to provide Summative Assessment for DOP ERDF Project,28/10/2022,173345,"7,900.00",Revenue,Mickledore Ltd,76163
Chorley Borough Council,http://statistics.data.gov.uk/id/local-authority/30UE,Service Management & Support,1009,CUST - Customer & Digital,Maintenance Street Furniture,20055,Grounds Maintenance Costs,5013,1x Cedar Field (on rails)1x Clover Field (on rails)1x Fern Meadow T (on rails)1x Parkside Drive (on rails)1x Back Lane (on rails),28/10/2022,172794,265.50,Revenue,Midland Signs (Leicester) Ltd,16606
Chorley Borough Council,http://statistics.data.gov.uk/id/local-authority/30UE,General Government Grants,,GOVN - Policy & Governance,Revenue Support Grant,69000,Income not in NCOS,,rev support grant,24/10/2022,170364,-38.00,Revenue,Ministry of Housing Communities & Local Government,16280
Chorley Borough Council,http://statistics.data.gov.uk/id/local-authority/30UE,Collection Fund Revenue Accoun,,GOVN - Policy & Governance,NNDR Central Share,2034,Precepts & Collection Fund,Precept,central share BR,24/10/2022,170364,"920,618.00",Revenue,Ministry of Housing Communities & Local Government,16280
Chorley Borough Council,http://statistics.data.gov.uk/id/local-authority/30UE,Collection Fund Revenue Accoun,,GOVN - Policy & Governance,NNDR Central Share,2034,Precepts & Collection Fund,Precept,deficit collection fund,24/10/2022,170364,"-234,715.00",Revenue,Ministry of Housing Communities & Local Government,16280
Chorley Borough Council,http://statistics.data.gov.uk/id/local-authority/30UE,General Government Grants,,GOVN - Policy & Governance,Revenue Support Grant,69000,Income not in NCOS,,revenue support grant,24/10/2022,171149,-37.00,Revenue,Ministry of Housing Communities & Local Government,16280
Chorley Borough Council,http://statistics.data.gov.uk/id/local-authority/30UE,Collection Fund Revenue Accoun,,GOVN - Policy & Governance,NNDR Central Share,2034,Precepts & Collection Fund,Precept,central share BR,24/10/2022,171149,"920,618.00",Revenue,Ministry of Housing Communities & Local Government,16280
Chorley Borough Council,http://statistics.data.gov.uk/id/local-authority/30UE,Collection Fund Revenue Accoun,,GOVN - Policy & Governance,NNDR Central Share,2034,Precepts & Collection Fund,Precept,deficit collection fund,24/10/2022,171149,"-234,715.00",Revenue,Ministry of Housing Communities & Local Government,16280
Chorley Borough Council,http://statistics.data.gov.uk/id/local-authority/30UE,Capital,Capital,EARL - Communities,Grants,3002,Capital Expenditure,Capital,21/00053/DFG,07/10/2022,172816,"5,546.34",Capital,Mint Northwest Ltd,65607
Chorley Borough Council,http://statistics.data.gov.uk/id/local-authority/30UE,Private Sector HSG Renewal,1073,EARL - Communities,External Contractor,40198,Miscellaneous Expenses,5034,Ref 6834,14/10/2022,170650,102.00,Revenue,Mobility Care Services,70841
Chorley Borough Council,http://statistics.data.gov.uk/id/local-authority/30UE,Private Sector HSG Renewal,1073,EARL - Communities,External Contractor,40198,Miscellaneous Expenses,5034,Ref 6848,14/10/2022,170650,210.00,Revenue,Mobility Care Services,70841
Chorley Borough Council,http://statistics.data.gov.uk/id/local-authority/30UE,Private Sector HSG Renewal,1073,EARL - Communities,External Contractor,40198,Miscellaneous Expenses,5034,Ref 6849,14/10/2022,170650,68.00,Revenue,Mobility Care Services,70841
Chorley Borough Council,http://statistics.data.gov.uk/id/local-authority/30UE,Private Sector HSG Renewal,1073,EARL - Communities,External Contractor,40198,Miscellaneous Expenses,5034,Ref 6850,14/10/2022,170650,68.00,Revenue,Mobility Care Services,70841
Chorley Borough Council,http://statistics.data.gov.uk/id/local-authority/30UE,Private Sector HSG Renewal,1073,EARL - Communities,External Contractor,40198,Miscellaneous Expenses,5034,Ref 6851,14/10/2022,170650,85.00,Revenue,Mobility Care Services,70841
Chorley Borough Council,http://statistics.data.gov.uk/id/local-authority/30UE,Private Sector HSG Renewal,1073,EARL - Communities,External Contractor,40198,Miscellaneous Expenses,5034,Ref 6852,14/10/2022,170650,17.00,Revenue,Mobility Care Services,70841
Chorley Borough Council,http://statistics.data.gov.uk/id/local-authority/30UE,Private Sector HSG Renewal,1073,EARL - Communities,External Contractor,40198,Miscellaneous Expenses,5034,Ref 6898,14/10/2022,170650,68.00,Revenue,Mobility Care Services,70841
Chorley Borough Council,http://statistics.data.gov.uk/id/local-authority/30UE,Private Sector HSG Renewal,1073,EARL - Communities,External Contractor,40198,Miscellaneous Expenses,5034,Ref 6899,14/10/2022,170650,68.00,Revenue,Mobility Care Services,70841
Chorley Borough Council,http://statistics.data.gov.uk/id/local-authority/30UE,Private Sector HSG Renewal,1073,EARL - Communities,External Contractor,40198,Miscellaneous Expenses,5034,Ref 6900,14/10/2022,170650,68.00,Revenue,Mobility Care Services,70841
Chorley Borough Council,http://statistics.data.gov.uk/id/local-authority/30UE,Private Sector HSG Renewal,1073,EARL - Communities,External Contractor,40198,Miscellaneous Expenses,5034,Ref 6907,14/10/2022,170650,51.00,Revenue,Mobility Care Services,70841
Chorley Borough Council,http://statistics.data.gov.uk/id/local-authority/30UE,Private Sector HSG Renewal,1073,EARL - Communities,External Contractor,40198,Miscellaneous Expenses,5034,Ref 6908,14/10/2022,170650,68.00,Revenue,Mobility Care Services,70841
Chorley Borough Council,http://statistics.data.gov.uk/id/local-authority/30UE,Private Sector HSG Renewal,1073,EARL - Communities,External Contractor,40198,Miscellaneous Expenses,5034,Ref 6918,14/10/2022,170650,34.00,Revenue,Mobility Care Services,70841
Chorley Borough Council,http://statistics.data.gov.uk/id/local-authority/30UE,Private Sector HSG Renewal,1073,EARL - Communities,External Contractor,40198,Miscellaneous Expenses,5034,Ref 6921,14/10/2022,170650,287.00,Revenue,Mobility Care Services,70841
Chorley Borough Council,http://statistics.data.gov.uk/id/local-authority/30UE,Private Sector HSG Renewal,1073,EARL - Communities,External Contractor,40198,Miscellaneous Expenses,5034,Ref 6765,14/10/2022,170650,17.00,Revenue,Mobility Care Services,70841
Chorley Borough Council,http://statistics.data.gov.uk/id/local-authority/30UE,Private Sector HSG Renewal,1073,EARL - Communities,External Contractor,40198,Miscellaneous Expenses,5034,Ref 6766,14/10/2022,170650,68.00,Revenue,Mobility Care Services,70841
Chorley Borough Council,http://statistics.data.gov.uk/id/local-authority/30UE,Private Sector HSG Renewal,1073,EARL - Communities,External Contractor,40198,Miscellaneous Expenses,5034,Ref 6767,14/10/2022,170650,17.00,Revenue,Mobility Care Services,70841
Chorley Borough Council,http://statistics.data.gov.uk/id/local-authority/30UE,Private Sector HSG Renewal,1073,EARL - Communities,External Contractor,40198,Miscellaneous Expenses,5034,Ref 6768,14/10/2022,170650,68.00,Revenue,Mobility Care Services,70841
Chorley Borough Council,http://statistics.data.gov.uk/id/local-authority/30UE,Private Sector HSG Renewal,1073,EARL - Communities,External Contractor,40198,Miscellaneous Expenses,5034,Ref 6769,14/10/2022,170650,68.00,Revenue,Mobility Care Services,70841
Chorley Borough Council,http://statistics.data.gov.uk/id/local-authority/30UE,Private Sector HSG Renewal,1073,EARL - Communities,External Contractor,40198,Miscellaneous Expenses,5034,Ref 6790,14/10/2022,170650,68.00,Revenue,Mobility Care Services,70841
Chorley Borough Council,http://statistics.data.gov.uk/id/local-authority/30UE,Private Sector HSG Renewal,1073,EARL - Communities,External Contractor,40198,Miscellaneous Expenses,5034,Ref 6792,14/10/2022,170650,85.00,Revenue,Mobility Care Services,70841
Chorley Borough Council,http://statistics.data.gov.uk/id/local-authority/30UE,Private Sector HSG Renewal,1073,EARL - Communities,External Contractor,40198,Miscellaneous Expenses,5034,Ref 6793,14/10/2022,170650,68.00,Revenue,Mobility Care Services,70841
Chorley Borough Council,http://statistics.data.gov.uk/id/local-authority/30UE,Private Sector HSG Renewal,1073,EARL - Communities,External Contractor,40198,Miscellaneous Expenses,5034,Ref 6979,28/10/2022,173403,264.00,Revenue,Mobility Care Services,70841
Chorley Borough Council,http://statistics.data.gov.uk/id/local-authority/30UE,Private Sector HSG Renewal,1073,EARL - Communities,External Contractor,40198,Miscellaneous Expenses,5034,Ref 6980,28/10/2022,173403,114.50,Revenue,Mobility Care Services,70841
Chorley Borough Council,http://statistics.data.gov.uk/id/local-authority/30UE,Private Sector HSG Renewal,1073,EARL - Communities,External Contractor,40198,Miscellaneous Expenses,5034,Ref 6981,28/10/2022,173403,114.50,Revenue,Mobility Care Services,70841
Chorley Borough Council,http://statistics.data.gov.uk/id/local-authority/30UE,Private Sector HSG Renewal,1073,EARL - Communities,External Contractor,40198,Miscellaneous Expenses,5034,Ref 6982,28/10/2022,173403,114.50,Revenue,Mobility Care Services,70841
Chorley Borough Council,http://statistics.data.gov.uk/id/local-authority/30UE,Private Sector HSG Renewal,1073,EARL - Communities,External Contractor,40198,Miscellaneous Expenses,5034,Ref 6983,28/10/2022,173403,114.50,Revenue,Mobility Care Services,70841
Chorley Borough Council,http://statistics.data.gov.uk/id/local-authority/30UE,Private Sector HSG Renewal,1073,EARL - Communities,External Contractor,40198,Miscellaneous Expenses,5034,Ref 6984,28/10/2022,173403,160.00,Revenue,Mobility Care Services,70841
Chorley Borough Council,http://statistics.data.gov.uk/id/local-authority/30UE,Private Sector HSG Renewal,1073,EARL - Communities,External Contractor,40198,Miscellaneous Expenses,5034,Ref 6985,28/10/2022,173403,229.00,Revenue,Mobility Care Services,70841
Chorley Borough Council,http://statistics.data.gov.uk/id/local-authority/30UE,Private Sector HSG Renewal,1073,EARL - Communities,External Contractor,40198,Miscellaneous Expenses,5034,Ref 6987,28/10/2022,173403,140.00,Revenue,Mobility Care Services,70841
Chorley Borough Council,http://statistics.data.gov.uk/id/local-authority/30UE,Private Sector HSG Renewal,1073,EARL - Communities,External Contractor,40198,Miscellaneous Expenses,5034,Ref 6995,28/10/2022,173403,102.00,Revenue,Mobility Care Services,70841
Chorley Borough Council,http://statistics.data.gov.uk/id/local-authority/30UE,Private Sector HSG Renewal,1073,EARL - Communities,External Contractor,40198,Miscellaneous Expenses,5034,Ref 6996,28/10/2022,173403,68.00,Revenue,Mobility Care Services,70841
Chorley Borough Council,http://statistics.data.gov.uk/id/local-authority/30UE,Private Sector HSG Renewal,1073,EARL - Communities,External Contractor,40198,Miscellaneous Expenses,5034,Ref 6998,28/10/2022,173403,140.00,Revenue,Mobility Care Services,70841
Chorley Borough Council,http://statistics.data.gov.uk/id/local-authority/30UE,Private Sector HSG Renewal,1073,EARL - Communities,External Contractor,40198,Miscellaneous Expenses,5034,Ref 6999,28/10/2022,173403,70.00,Revenue,Mobility Care Services,70841
Chorley Borough Council,http://statistics.data.gov.uk/id/local-authority/30UE,Private Sector HSG Renewal,1073,EARL - Communities,External Contractor,40198,Miscellaneous Expenses,5034,Ref 7000,28/10/2022,173403,68.00,Revenue,Mobility Care Services,70841
Chorley Borough Council,http://statistics.data.gov.uk/id/local-authority/30UE,Private Sector HSG Renewal,1073,EARL - Communities,External Contractor,40198,Miscellaneous Expenses,5034,Ref 7001,28/10/2022,173403,85.00,Revenue,Mobility Care Services,70841
Chorley Borough Council,http://statistics.data.gov.uk/id/local-authority/30UE,Private Sector HSG Renewal,1073,EARL - Communities,External Contractor,40198,Miscellaneous Expenses,5034,Ref 7002,28/10/2022,173403,102.00,Revenue,Mobility Care Services,70841
Chorley Borough Council,http://statistics.data.gov.uk/id/local-authority/30UE,Private Sector HSG Renewal,1073,EARL - Communities,External Contractor,40198,Miscellaneous Expenses,5034,Ref 7003,28/10/2022,173403,650.00,Revenue,Mobility Care Services,70841
Chorley Borough Council,http://statistics.data.gov.uk/id/local-authority/30UE,Private Sector HSG Renewal,1073,EARL - Communities,External Contractor,40198,Miscellaneous Expenses,5034,Ref 7004,28/10/2022,173403,114.50,Revenue,Mobility Care Services,70841
Chorley Borough Council,http://statistics.data.gov.uk/id/local-authority/30UE,Private Sector HSG Renewal,1073,EARL - Communities,External Contractor,40198,Miscellaneous Expenses,5034,Ref 7005,28/10/2022,173403,132.00,Revenue,Mobility Care Services,70841
Chorley Borough Council,http://statistics.data.gov.uk/id/local-authority/30UE,Private Sector HSG Renewal,1073,EARL - Communities,External Contractor,40198,Miscellaneous Expenses,5034,Ref 7015,28/10/2022,173403,860.00,Revenue,Mobility Care Services,70841
Chorley Borough Council,http://statistics.data.gov.uk/id/local-authority/30UE,Private Sector HSG Renewal,1073,EARL - Communities,External Contractor,40198,Miscellaneous Expenses,5034,Ref 7031,28/10/2022,173403,540.00,Revenue,Mobility Care Services,70841
Chorley Borough Council,http://statistics.data.gov.uk/id/local-authority/30UE,Private Sector HSG Renewal,1073,EARL - Communities,External Contractor,40198,Miscellaneous Expenses,5034,Ref 7032,28/10/2022,173403,235.00,Revenue,Mobility Care Services,70841
Chorley Borough Council,http://statistics.data.gov.uk/id/local-authority/30UE,Private Sector HSG Renewal,1073,EARL - Communities,External Contractor,40198,Miscellaneous Expenses,5034,Ref 7033,28/10/2022,173403,114.50,Revenue,Mobility Care Services,70841
Chorley Borough Council,http://statistics.data.gov.uk/id/local-authority/30UE,Private Sector HSG Renewal,1073,EARL - Communities,External Contractor,40198,Miscellaneous Expenses,5034,Ref 7034,28/10/2022,173403,114.50,Revenue,Mobility Care Services,70841
Chorley Borough Council,http://statistics.data.gov.uk/id/local-authority/30UE,Private Sector HSG Renewal,1073,EARL - Communities,External Contractor,40198,Miscellaneous Expenses,5034,Ref 7055,28/10/2022,173403,930.98,Revenue,Mobility Care Services,70841
Chorley Borough Council,http://statistics.data.gov.uk/id/local-authority/30UE,Private Sector HSG Renewal,1073,EARL - Communities,External Contractor,40198,Miscellaneous Expenses,5034,Ref 7056,28/10/2022,173403,264.00,Revenue,Mobility Care Services,70841
Chorley Borough Council,http://statistics.data.gov.uk/id/local-authority/30UE,Private Sector HSG Renewal,1073,EARL - Communities,External Contractor,40198,Miscellaneous Expenses,5034,Ref 6928,28/10/2022,173403,220.00,Revenue,Mobility Care Services,70841
Chorley Borough Council,http://statistics.data.gov.uk/id/local-authority/30UE,Private Sector HSG Renewal,1073,EARL - Communities,External Contractor,40198,Miscellaneous Expenses,5034,Ref 6929,28/10/2022,173403,132.00,Revenue,Mobility Care Services,70841
Chorley Borough Council,http://statistics.data.gov.uk/id/local-authority/30UE,Private Sector HSG Renewal,1073,EARL - Communities,External Contractor,40198,Miscellaneous Expenses,5034,Ref 6930,28/10/2022,173403,320.00,Revenue,Mobility Care Services,70841
Chorley Borough Council,http://statistics.data.gov.uk/id/local-authority/30UE,Private Sector HSG Renewal,1073,EARL - Communities,External Contractor,40198,Miscellaneous Expenses,5034,Ref 6934,28/10/2022,173403,68.00,Revenue,Mobility Care Services,70841
Chorley Borough Council,http://statistics.data.gov.uk/id/local-authority/30UE,Private Sector HSG Renewal,1073,EARL - Communities,External Contractor,40198,Miscellaneous Expenses,5034,Ref 6935,28/10/2022,173403,68.00,Revenue,Mobility Care Services,70841
Chorley Borough Council,http://statistics.data.gov.uk/id/local-authority/30UE,Private Sector HSG Renewal,1073,EARL - Communities,External Contractor,40198,Miscellaneous Expenses,5034,Ref 6936,28/10/2022,173403,85.00,Revenue,Mobility Care Services,70841
Chorley Borough Council,http://statistics.data.gov.uk/id/local-authority/30UE,Private Sector HSG Renewal,1073,EARL - Communities,External Contractor,40198,Miscellaneous Expenses,5034,Ref 6973,28/10/2022,173403,132.00,Revenue,Mobility Care Services,70841
Chorley Borough Council,http://statistics.data.gov.uk/id/local-authority/30UE,Private Sector HSG Renewal,1073,EARL - Communities,External Contractor,40198,Miscellaneous Expenses,5034,Ref 6974,28/10/2022,173403,132.00,Revenue,Mobility Care Services,70841
Chorley Borough Council,http://statistics.data.gov.uk/id/local-authority/30UE,Private Sector HSG Renewal,1073,EARL - Communities,External Contractor,40198,Miscellaneous Expenses,5034,Ref 6975,28/10/2022,173403,180.00,Revenue,Mobility Care Services,70841
Chorley Borough Council,http://statistics.data.gov.uk/id/local-authority/30UE,Private Sector HSG Renewal,1073,EARL - Communities,External Contractor,40198,Miscellaneous Expenses,5034,Ref 6976,28/10/2022,173403,132.00,Revenue,Mobility Care Services,70841
Chorley Borough Council,http://statistics.data.gov.uk/id/local-authority/30UE,Private Sector HSG Renewal,1073,EARL - Communities,External Contractor,40198,Miscellaneous Expenses,5034,Ref 6977,28/10/2022,173403,132.00,Revenue,Mobility Care Services,70841
Chorley Borough Council,http://statistics.data.gov.uk/id/local-authority/30UE,Private Sector HSG Renewal,1073,EARL - Communities,External Contractor,40198,Miscellaneous Expenses,5034,Ref 6978,28/10/2022,173403,132.00,Revenue,Mobility Care Services,70841
Chorley Borough Council,http://statistics.data.gov.uk/id/local-authority/30UE,Planning Policy,1092,GOVN - Policy & Governance,Legal Fees,40171,Miscellaneous Expenses,5034,Further legal advice on options for the Chorley Local Plan in relation to the NPPF,28/10/2022,173302,"1,500.00",Revenue,Mr Ian Ponter,19968
Chorley Borough Council,http://statistics.data.gov.uk/id/local-authority/30UE,Central Support Services,1009,GOVN - Policy & Governance,Printing,40043,"Printing, Stationery & General",5026,Title: 10PP 1/3 A4 ASTLEY LEAFLET Size: 210 X 99 Artwork: From Press-Ready PDF Supplied with all ticks and bleeds..,28/10/2022,173473,"1,253.00",Revenue,N B Colour Print Ltd,17917
Chorley Borough Council,http://statistics.data.gov.uk/id/local-authority/30UE,Democratic Represent and  Mgnt,1007,GOVN - Policy & Governance,Arts Development Initiatives,40187,Miscellaneous Expenses,5034,two page advert in the Chorley Guardian. arranged with NAME REDACTED,28/10/2022,170930,653.82,Revenue,National World Publishing Limited,20072
Chorley Borough Council,http://statistics.data.gov.uk/id/local-authority/30UE,Tourism,1039,GOVN - Policy & Governance,Misc Expenses,40200,Miscellaneous Expenses,5034,Chorley Live 2022 advert in the LEP.,28/10/2022,173014,413.00,Revenue,National World Publishing Limited,20072
Chorley Borough Council,http://statistics.data.gov.uk/id/local-authority/30UE,Unapportionable Central OHeads,1009,GOVN - Policy & Governance,Postages,40082,Communication and Computing,5028,"One NFS330 Franking Machine &Scale, Serial Number NE8002360 / DA1243567448 for October 2022 to September 2023.",14/10/2022,173034,453.00,Revenue,Nationwide Franking Sense,22546
Chorley Borough Council,http://statistics.data.gov.uk/id/local-authority/30UE,Unapportionable Central OHeads,1009,GOVN - Policy & Governance,Postages,40082,Communication and Computing,5028,top up,07/10/2022,170865,"1,000.00",Revenue,Neopost Ltd RCB Credifon A/C,20009
Chorley Borough Council,http://statistics.data.gov.uk/id/local-authority/30UE,Tourism,1039,GOVN - Policy & Governance,External Contractor,40198,Miscellaneous Expenses,5034,Event security,07/10/2022,172715,"1,449.50",Revenue,New Concept Security NW Ltd T/A New Concept Goup,80488
Chorley Borough Council,http://statistics.data.gov.uk/id/local-authority/30UE,Tourism,1039,GOVN - Policy & Governance,External Contractor,40198,Miscellaneous Expenses,5034,Event security,07/10/2022,172757,604.50,Revenue,New Concept Security NW Ltd T/A New Concept Goup,80488
Chorley Borough Council,http://statistics.data.gov.uk/id/local-authority/30UE,Tourism,1039,GOVN - Policy & Governance,Misc Expenses,40200,Miscellaneous Expenses,5034,Chorley Live 2022 - Friday 7 & Saturday 8 October 2022 9 Door Supervisors each night,28/10/2022,173293,"1,644.75",Revenue,New Concept Security NW Ltd T/A New Concept Goup,80488
Chorley Borough Council,http://statistics.data.gov.uk/id/local-authority/30UE,Service Management & Support,1009,CUST - Customer & Digital,Supplies-Grounds Maintenance,40025,"Equipment, Furniture & Materia",5023,Nomix Conqueror 5litres x 15 ,28/10/2022,173265,"1,198.75",Revenue,Nomix Enviro Ltd,82223
Chorley Borough Council,http://statistics.data.gov.uk/id/local-authority/30UE,Central Support Services,1009,GOVN - Policy & Governance,Publicity - Advertising,40157,Miscellaneous Expenses,5034,Film Production Coverage - Astley Hall visitor experience,07/10/2022,172735,325.00,Revenue,North Film Studios Limited,85582
Chorley Borough Council,http://statistics.data.gov.uk/id/local-authority/30UE,Central Support Services,1009,GOVN - Policy & Governance,Publicity - Advertising,40157,Miscellaneous Expenses,5034,Re: Invoice CC005 Film Production Event Coverage: Chorley Live,28/10/2022,173445,650.00,Revenue,North Film Studios Limited,85582
Chorley Borough Council,http://statistics.data.gov.uk/id/local-authority/30UE,Central Support Services,1009,CUST - Customer & Digital,Hire Of Vehicles and Plant,30028,Contrct Hire & Operating Lease,5018,Vehicle hire 3.5ton Luton Van with tail-lift,28/10/2022,173322,683.20,Revenue,Northgate Vehicle Hire (NW) Ltd,17360
Chorley Borough Council,http://statistics.data.gov.uk/id/local-authority/30UE,Business Support,1095,GROW - Commercial & Property,Electricity,20013,Energy Costs,5006,1/2 to 28/2/22,21/10/2022,170260,448.62,Revenue,Npower Commercial Gas,16814
Chorley Borough Council,http://statistics.data.gov.uk/id/local-authority/30UE,Business Support,1095,GOVN - Policy & Governance,Electricity,20013,Energy Costs,5006,Landlord primrose gardens,21/10/2022,171006,"2,624.53",Revenue,Npower Commercial Gas,16814
Chorley Borough Council,http://statistics.data.gov.uk/id/local-authority/30UE,Central Support Services,1009,GOVN - Policy & Governance,Electricity,20013,Energy Costs,5006,West way sports hub,21/10/2022,171010,828.32,Revenue,Npower Commercial Gas,16814
Chorley Borough Council,http://statistics.data.gov.uk/id/local-authority/30UE,Parking Services,1066,GROW - Commercial & Property,Electricity,20013,Energy Costs,5006,1 Jul 2022 to 30 Sep 2022,28/10/2022,173258,794.27,Revenue,Npower Commercial Gas,16814
Chorley Borough Council,http://statistics.data.gov.uk/id/local-authority/30UE,Democratic Represent and  Mgnt,1007,GROW - Commercial & Property,Electricity,20013,Energy Costs,5006,1 Sep 2022 to 30 Sep 2022,28/10/2022,173259,"13,581.93",Revenue,Npower Commercial Gas,16814
Chorley Borough Council,http://statistics.data.gov.uk/id/local-authority/30UE,Unapportionable Central OHeads,1009,GROW - Commercial & Property,Electricity,20013,Energy Costs,5006,1 Sep 2022 to 30 Sep 2022,28/10/2022,173260,"1,968.68",Revenue,Npower Commercial Gas,16814
Chorley Borough Council,http://statistics.data.gov.uk/id/local-authority/30UE,Business Support,1095,GROW - Commercial & Property,Electricity,20013,Energy Costs,5006,1 Sep 2022 to 30 Sep 2022,28/10/2022,173261,"7,678.91",Revenue,Npower Commercial Gas,16814
Chorley Borough Council,http://statistics.data.gov.uk/id/local-authority/30UE,Recreation & Sport,1037,GROW - Commercial & Property,Electricity,20013,Energy Costs,5006,1 Sep 2022 to 30 Sep 2022,28/10/2022,173263,0.99,Revenue,Npower Commercial Gas,16814
Chorley Borough Council,http://statistics.data.gov.uk/id/local-authority/30UE,Recreation & Sport,1037,GROW - Commercial & Property,Electricity,20013,Energy Costs,5006,1 Sep 2022 to 30 Sep 2022,28/10/2022,173263,313.80,Revenue,Npower Commercial Gas,16814
Chorley Borough Council,http://statistics.data.gov.uk/id/local-authority/30UE,Central Support Services,1009,GROW - Commercial & Property,Electricity,20013,Energy Costs,5006,1 Sep 2022 to 30 Sep 2022,28/10/2022,173264,"1,122.57",Revenue,Npower Commercial Gas,16814
Chorley Borough Council,http://statistics.data.gov.uk/id/local-authority/30UE,Business Support,1095,GROW - Commercial & Property,Electricity,20013,Energy Costs,5006,1 Sep 2022 to 30 Sep 2022,28/10/2022,173270,"2,476.38",Revenue,Npower Commercial Gas,16814
Chorley Borough Council,http://statistics.data.gov.uk/id/local-authority/30UE,Recreation & Sport,1037,GROW - Commercial & Property,Electricity,20013,Energy Costs,5006,1 Sep 2022 to 30 Sep 2022,28/10/2022,173271,"2,589.48",Revenue,Npower Commercial Gas,16814
Chorley Borough Council,http://statistics.data.gov.uk/id/local-authority/30UE,Central Support Services,1009,CUST - Customer & Digital,IT Software - Annual Licences,40101,Communication and Computing,5028,Oracle Database Standard Edition One - Processor Perpetual x2 ,21/10/2022,173169,"4,820.89",Revenue,Oracle Corporation UK Ltd,61786
Chorley Borough Council,http://statistics.data.gov.uk/id/local-authority/30UE,Service Management & Support,1009,CUST - Customer & Digital,Supplies - Workshop,40246,"Equipment, Furniture & Materia",5023,As per invoice 21307,28/10/2022,173087,349.60,Revenue,P D M Components,19204
Chorley Borough Council,http://statistics.data.gov.uk/id/local-authority/30UE,Planning Policy,1092,PLAN - Planning & Development,Operational Employees Salaries,10000,Direct Employee Expenses,5001,Supply of agency staff to work on the Central Lancashire Local Plan,14/10/2022,170736,"2,346.00",Revenue,Park Avenue Recruitment Ltd,82305
Chorley Borough Council,http://statistics.data.gov.uk/id/local-authority/30UE,Planning Policy,1092,PLAN - Planning & Development,Operational Employees Salaries,10000,Direct Employee Expenses,5001,Supply of agency staff to work on the Central Lancashire Local Plan,14/10/2022,170884,"1,265.00",Revenue,Park Avenue Recruitment Ltd,82305
Chorley Borough Council,http://statistics.data.gov.uk/id/local-authority/30UE,Planning Policy,1092,PLAN - Planning & Development,Operational Employees Salaries,10000,Direct Employee Expenses,5001,Supply of agency staff to work on the Central Lancashire Local Plan,14/10/2022,172947,"1,380.00",Revenue,Park Avenue Recruitment Ltd,82305
Chorley Borough Council,http://statistics.data.gov.uk/id/local-authority/30UE,Unapportionable Central OHeads,1009,GOVN - Policy & Governance,Cleaning Materials,40019,"Equipment, Furniture & Materia",5023,AD104 Mini Jumbo 12 pack QTY 10 packs ,14/10/2022,170582,96.70,Revenue,Pattersons Holdings (Bristol),77537
Chorley Borough Council,http://statistics.data.gov.uk/id/local-authority/30UE,Unapportionable Central OHeads,1009,GOVN - Policy & Governance,Cleaning Materials,40019,"Equipment, Furniture & Materia",5023,AC003 Small toilet rolls 36 pack ,14/10/2022,170582,64.60,Revenue,Pattersons Holdings (Bristol),77537
Chorley Borough Council,http://statistics.data.gov.uk/id/local-authority/30UE,Unapportionable Central OHeads,1009,GOVN - Policy & Governance,Cleaning Materials,40019,"Equipment, Furniture & Materia",5023,BC040-5 Fragranced toilet cleaner 5Ltr,14/10/2022,170582,28.24,Revenue,Pattersons Holdings (Bristol),77537
Chorley Borough Council,http://statistics.data.gov.uk/id/local-authority/30UE,Unapportionable Central OHeads,1009,GOVN - Policy & Governance,Cleaning Materials,40019,"Equipment, Furniture & Materia",5023,BG040FL Spray Air fresh 400ml ,14/10/2022,170582,21.60,Revenue,Pattersons Holdings (Bristol),77537
Chorley Borough Council,http://statistics.data.gov.uk/id/local-authority/30UE,Unapportionable Central OHeads,1009,GOVN - Policy & Governance,Cleaning Materials,40019,"Equipment, Furniture & Materia",5023,BC015-5 Bleach 5ltr QTY 2 x 5L ,14/10/2022,170582,4.66,Revenue,Pattersons Holdings (Bristol),77537
Chorley Borough Council,http://statistics.data.gov.uk/id/local-authority/30UE,Unapportionable Central OHeads,1009,GOVN - Policy & Governance,Cleaning Materials,40019,"Equipment, Furniture & Materia",5023,BK104-5 Liquid hand soap unperfumed 5L ,14/10/2022,170582,19.36,Revenue,Pattersons Holdings (Bristol),77537
Chorley Borough Council,http://statistics.data.gov.uk/id/local-authority/30UE,Unapportionable Central OHeads,1009,GOVN - Policy & Governance,Cleaning Materials,40019,"Equipment, Furniture & Materia",5023,NC-16006 Henry Vac Bag,14/10/2022,170582,3.30,Revenue,Pattersons Holdings (Bristol),77537
Chorley Borough Council,http://statistics.data.gov.uk/id/local-authority/30UE,Unapportionable Central OHeads,1009,GOVN - Policy & Governance,Cleaning Materials,40019,"Equipment, Furniture & Materia",5023,AE233 Paper Hand towels,14/10/2022,170582,170.60,Revenue,Pattersons Holdings (Bristol),77537
Chorley Borough Council,http://statistics.data.gov.uk/id/local-authority/30UE,Unapportionable Central OHeads,1009,GOVN - Policy & Governance,Cleaning Materials,40019,"Equipment, Furniture & Materia",5023,BB034-5 Washing up liquid,14/10/2022,170582,26.40,Revenue,Pattersons Holdings (Bristol),77537
Chorley Borough Council,http://statistics.data.gov.uk/id/local-authority/30UE,Unapportionable Central OHeads,1009,GOVN - Policy & Governance,Cleaning Materials,40019,"Equipment, Furniture & Materia",5023,AF113 Blue centre feed rolls - 6 pack,14/10/2022,170582,7.77,Revenue,Pattersons Holdings (Bristol),77537
Chorley Borough Council,http://statistics.data.gov.uk/id/local-authority/30UE,Unapportionable Central OHeads,1009,GOVN - Policy & Governance,Cleaning Materials,40019,"Equipment, Furniture & Materia",5023,CM180 Black Bin Liners,14/10/2022,170582,62.85,Revenue,Pattersons Holdings (Bristol),77537
Chorley Borough Council,http://statistics.data.gov.uk/id/local-authority/30UE,Unapportionable Central OHeads,1009,GOVN - Policy & Governance,Cleaning Materials,40019,"Equipment, Furniture & Materia",5023,BA010-5 Hard Surface cleaner,14/10/2022,170582,21.00,Revenue,Pattersons Holdings (Bristol),77537
Chorley Borough Council,http://statistics.data.gov.uk/id/local-authority/30UE,Unapportionable Central OHeads,1009,GOVN - Policy & Governance,Cleaning Materials,40019,"Equipment, Furniture & Materia",5023,DC511-NB-LXL Portwest Navy Pocket Tabard Size L/XL,14/10/2022,170582,45.45,Revenue,Pattersons Holdings (Bristol),77537
Chorley Borough Council,http://statistics.data.gov.uk/id/local-authority/30UE,Business Support,1095,GROW - Commercial & Property,Cleaning/Attendants' Services,20041,Cleaning and Domestic Supplies,5012,AA301-mini jumbo roll 2ply (12) x1,21/10/2022,172969,35.12,Revenue,Pattersons Holdings (Bristol),77537
Chorley Borough Council,http://statistics.data.gov.uk/id/local-authority/30UE,Business Support,1095,GROW - Commercial & Property,Cleaning/Attendants' Services,20041,Cleaning and Domestic Supplies,5012,AE214- HAND TOWELS X12,21/10/2022,172969,213.60,Revenue,Pattersons Holdings (Bristol),77537
Chorley Borough Council,http://statistics.data.gov.uk/id/local-authority/30UE,Business Support,1095,GROW - Commercial & Property,Cleaning/Attendants' Services,20041,Cleaning and Domestic Supplies,5012,PX-00012- DISHWASER CLEANER X3,21/10/2022,172969,10.29,Revenue,Pattersons Holdings (Bristol),77537
Chorley Borough Council,http://statistics.data.gov.uk/id/local-authority/30UE,Business Support,1095,GROW - Commercial & Property,Cleaning/Attendants' Services,20041,Cleaning and Domestic Supplies,5012,BC015-5- BLEACH 5LTR X1,21/10/2022,172969,2.33,Revenue,Pattersons Holdings (Bristol),77537
Chorley Borough Council,http://statistics.data.gov.uk/id/local-authority/30UE,Business Support,1095,GROW - Commercial & Property,Cleaning/Attendants' Services,20041,Cleaning and Domestic Supplies,5012,BC041-1- PERFUMES TOILET CLEANER X8,21/10/2022,172969,7.20,Revenue,Pattersons Holdings (Bristol),77537
Chorley Borough Council,http://statistics.data.gov.uk/id/local-authority/30UE,Business Support,1095,GROW - Commercial & Property,Cleaning/Attendants' Services,20041,Cleaning and Domestic Supplies,5012,BC060-1- ACIDIC TOILET CLEANR AND LIMESCLE REMOVER- X8,21/10/2022,172969,16.72,Revenue,Pattersons Holdings (Bristol),77537
Chorley Borough Council,http://statistics.data.gov.uk/id/local-authority/30UE,Business Support,1095,GROW - Commercial & Property,Cleaning/Attendants' Services,20041,Cleaning and Domestic Supplies,5012,CG106-B- MICROFIBRE SUPER CLOTH BLUE X2,21/10/2022,172969,7.80,Revenue,Pattersons Holdings (Bristol),77537
Chorley Borough Council,http://statistics.data.gov.uk/id/local-authority/30UE,Business Support,1095,GROW - Commercial & Property,Cleaning/Attendants' Services,20041,Cleaning and Domestic Supplies,5012,CM180- BLACK REFUSE SACKS,21/10/2022,172969,12.57,Revenue,Pattersons Holdings (Bristol),77537
Chorley Borough Council,http://statistics.data.gov.uk/id/local-authority/30UE,Business Support,1095,GROW - Commercial & Property,Cleaning/Attendants' Services,20041,Cleaning and Domestic Supplies,5012,DG150-L - BLUE POWDER FREE GLOVES LARGE X1,21/10/2022,172969,9.25,Revenue,Pattersons Holdings (Bristol),77537
Chorley Borough Council,http://statistics.data.gov.uk/id/local-authority/30UE,Business Support,1095,GROW - Commercial & Property,Cleaning/Attendants' Services,20041,Cleaning and Domestic Supplies,5012,HA001-16- MOP HEAD X4,21/10/2022,172969,4.96,Revenue,Pattersons Holdings (Bristol),77537
Chorley Borough Council,http://statistics.data.gov.uk/id/local-authority/30UE,Homelessness,1075,GROW - Commercial & Property,Cleaning Materials,40019,"Equipment, Furniture & Materia",5023,September cleaning order,14/10/2022,172970,419.00,Revenue,Pattersons Holdings (Bristol),77537
Chorley Borough Council,http://statistics.data.gov.uk/id/local-authority/30UE,Homelessness,1075,EARL - Communities,Service Fees,40056,Services,5027,STORAGE COSTS FOR NAMES REDACTED,14/10/2022,171173,240.00,Revenue,Pay Store Limited T/A Store First,85507
Chorley Borough Council,http://statistics.data.gov.uk/id/local-authority/30UE,Homelessness,1075,EARL - Communities,Service Fees,40056,Services,5027,fee,14/10/2022,171173,33.33,Revenue,Pay Store Limited T/A Store First,85507
Chorley Borough Council,http://statistics.data.gov.uk/id/local-authority/30UE,Unapportionable Central OHeads,1009,GROW - Commercial & Property,General Repairs - Reactive,20004,Repairs Maintenance & Alts,5005,West Way sports Hub Take down and remove from site 1 no. damaged panel of 3.0mt ,28/10/2022,173317,"1,153.60",Revenue,Peerless Fencing Limited,78148
Chorley Borough Council,http://statistics.data.gov.uk/id/local-authority/30UE,Capital,Capital,GROW - Commercial & Property,Main Contractor,3007,Capital Expenditure,Capital,"ALL SEASONS LEISURE CENTRE, CHORLEY Due to the amount of modification work required to the existing gate ",28/10/2022,173318,"1,670.51",Capital,Peerless Fencing Limited,78148
Chorley Borough Council,http://statistics.data.gov.uk/id/local-authority/30UE,Unapportionable Central OHeads,1009,GOVN - Policy & Governance,HR Approved Occ Health Fees,15201,Indirect Employee Expenses,5002,Occupational Health Charges June 2022,07/10/2022,170899,"1,629.90",Revenue,People Asset Management Limited,76487
Chorley Borough Council,http://statistics.data.gov.uk/id/local-authority/30UE,Unapportionable Central OHeads,1009,GOVN - Policy & Governance,HR Approved Occ Health Fees,15201,Indirect Employee Expenses,5002,Zero VAT,07/10/2022,170899,756.00,Revenue,People Asset Management Limited,76487
Chorley Borough Council,http://statistics.data.gov.uk/id/local-authority/30UE,Unapportionable Central OHeads,1009,GOVN - Policy & Governance,HR Approved Occ Health Fees,15201,Indirect Employee Expenses,5002,Occupational Health Charges for July 2022,07/10/2022,170900,"1,137.98",Revenue,People Asset Management Limited,76487
Chorley Borough Council,http://statistics.data.gov.uk/id/local-authority/30UE,Unapportionable Central OHeads,1009,GOVN - Policy & Governance,HR Approved Occ Health Fees,15201,Indirect Employee Expenses,5002,Zero VAT,07/10/2022,170900,247.50,Revenue,People Asset Management Limited,76487
Chorley Borough Council,http://statistics.data.gov.uk/id/local-authority/30UE,Unapportionable Central OHeads,1009,GOVN - Policy & Governance,HR Approved Occ Health Fees,15201,Indirect Employee Expenses,5002,Occupational Health Charges - Invoice 118773,07/10/2022,172779,"2,574.68",Revenue,People Asset Management Limited,76487
Chorley Borough Council,http://statistics.data.gov.uk/id/local-authority/30UE,Unapportionable Central OHeads,1009,GOVN - Policy & Governance,HR Approved Occ Health Fees,15201,Indirect Employee Expenses,5002,Zero VAT,07/10/2022,172779,189.00,Revenue,People Asset Management Limited,76487
Chorley Borough Council,http://statistics.data.gov.uk/id/local-authority/30UE,Unapportionable Central OHeads,1009,GOVN - Policy & Governance,HR Approved Occ Health Fees,15201,Indirect Employee Expenses,5002,300 Flu Vouchers,21/10/2022,173184,"3,375.00",Revenue,People Asset Management Limited,76487
Chorley Borough Council,http://statistics.data.gov.uk/id/local-authority/30UE,Unapportionable Central OHeads,1009,GOVN - Policy & Governance,HR Recruitment Expenses,15200,Indirect Employee Expenses,5002,DBS checks for staff,07/10/2022,171102,145.81,Revenue,Personnel Checks Ltd,81534
Chorley Borough Council,http://statistics.data.gov.uk/id/local-authority/30UE,Unapportionable Central OHeads,1009,GOVN - Policy & Governance,HR Recruitment Expenses,15200,Indirect Employee Expenses,5002,Basic Check Admin Fee,07/10/2022,171102,17.49,Revenue,Personnel Checks Ltd,81534
Chorley Borough Council,http://statistics.data.gov.uk/id/local-authority/30UE,Unapportionable Central OHeads,1009,GOVN - Policy & Governance,HR Recruitment Expenses,15200,Indirect Employee Expenses,5002,Basic Check Govmnt Fee,07/10/2022,171102,18.00,Revenue,Personnel Checks Ltd,81534
Chorley Borough Council,http://statistics.data.gov.uk/id/local-authority/30UE,Unapportionable Central OHeads,1009,GOVN - Policy & Governance,HR Recruitment Expenses,15200,Indirect Employee Expenses,5002,Enhanced Check,07/10/2022,171102,266.00,Revenue,Personnel Checks Ltd,81534
Chorley Borough Council,http://statistics.data.gov.uk/id/local-authority/30UE,Central Support Services,1009,CUST - Customer & Digital,Computer Software-Purchase,40100,Communication and Computing,5028,Microsoft 365 E3 Shared Server All Language Subscription Per User - Licence x25,21/10/2022,172987,"2,593.50",Revenue,Phoenix Software Ltd,17046
Chorley Borough Council,http://statistics.data.gov.uk/id/local-authority/30UE,Service Management & Support,1009,CUST - Customer & Digital,Supplies-Grounds Maintenance,40025,"Equipment, Furniture & Materia",5023,2x pallets peat free compost,07/10/2022,171092,708.33,Revenue,Pole Green Nurseries,20641
Chorley Borough Council,http://statistics.data.gov.uk/id/local-authority/30UE,Precepts and Collection Fund,Precepts,GOVN - Policy & Governance,LPA Precept,2010,Precepts & Collection Fund,Precept,PCC CTax precepts,24/10/2022,170861,"912,252.00",Revenue,Police & Crime Commissioner,17438
Chorley Borough Council,http://statistics.data.gov.uk/id/local-authority/30UE,Central Support Services,1009,PLAN - Planning & Development,Safety Signs And Posters,40017,"Equipment, Furniture & Materia",5023,A3 Dog Fouling signs on 10mm Correx Board batch of 60 as per quote REF17692/1,28/10/2022,173430,622.10,Revenue,Poppy Signs Ltd,21898
Chorley Borough Council,http://statistics.data.gov.uk/id/local-authority/30UE,Recreation & Sport,1037,GOVN - Policy & Governance,Performing Rights Society Fees,40148,Grants and Subscriptions,5031,05/10/2022,14/10/2022,173127,"1,599.12",Revenue,PPL PRS Ltd,77455
Chorley Borough Council,http://statistics.data.gov.uk/id/local-authority/30UE,Capital,Capital,EARL - Communities,Grants,3002,Capital Expenditure,Capital,Handyperson funding Q3 2022-23,28/10/2022,173253,"6,250.00",Capital,Preston Care and Repair,50018
Chorley Borough Council,http://statistics.data.gov.uk/id/local-authority/30UE,Elections,1012,GOVN - Policy & Governance,Printing,40043,"Printing, Stationery & General",5026,2022 Annual Canvass - ITR requirements.  Printed folded and delivered back to Council4323,28/10/2022,173482,"1,441.38",Revenue,Print Image Network,21171
Chorley Borough Council,http://statistics.data.gov.uk/id/local-authority/30UE,Other Short Term Creditors,,GOVN - Policy & Governance,General Balances,100,Balance Sheet,Balance,,28/10/2022,173437,"3,890.00",Revenue,PRUDENTIAL,18178
Chorley Borough Council,http://statistics.data.gov.uk/id/local-authority/30UE,Interest Payable on Debt,1020,GOVN - Policy & Governance,Interest Payable,9009,Interest Payments,5067,Interest LN 509689,24/10/2022,170473,"17,796.86",Revenue,Public Works Loans Board,21480
Chorley Borough Council,http://statistics.data.gov.uk/id/local-authority/30UE,Interest Payable on Debt,1020,GOVN - Policy & Governance,Interest Payable,9009,Interest Payments,5067,Interest LN 509691,24/10/2022,170473,"17,325.00",Revenue,Public Works Loans Board,21480
Chorley Borough Council,http://statistics.data.gov.uk/id/local-authority/30UE,Interest Payable on Debt,1020,GOVN - Policy & Governance,Interest Payable,9009,Interest Payments,5067,Interest LN 165470,24/10/2022,170474,"77,235.00",Revenue,Public Works Loans Board,21480
Chorley Borough Council,http://statistics.data.gov.uk/id/local-authority/30UE,Interest Payable on Debt,1020,GOVN - Policy & Governance,Interest Payable,9009,Interest Payments,5067,Interest,24/10/2022,172815,"101,000.00",Revenue,Public Works Loans Board,21480
Chorley Borough Council,http://statistics.data.gov.uk/id/local-authority/30UE,Homelessness,1075,EARL - Communities,Bed and Breakfast Accommodation,40232,Miscellaneous Expenses,5034,Hotel Costs -  NAMES REDACTED,21/10/2022,173079,"2,622.25",Revenue,Purple Roomz,84223
Chorley Borough Council,http://statistics.data.gov.uk/id/local-authority/30UE,Regulatory Services,1048,PLAN - Planning & Development,Taxi Testing & Vehicle Safety Report,40234,Services,5027,taxi test,21/10/2022,172830,324.25,Revenue,R.C.J Motors,63625
Chorley Borough Council,http://statistics.data.gov.uk/id/local-authority/30UE,Central Support Services,1009,GROW - Commercial & Property,Misc Expenses,40200,Miscellaneous Expenses,5034,Whittle Surgery Capital Works (Val 18),07/10/2022,172726,898.56,Revenue,Rayner Rowen Construction Limited,80915
Chorley Borough Council,http://statistics.data.gov.uk/id/local-authority/30UE,Business Support,1095,GROW - Commercial & Property,General Repairs - Reactive,20004,Repairs Maintenance & Alts,5005,To provide a pest control service to Market Walk from April 22 which includes the following:  Rats/Mice - Pigeon trapping -,07/10/2022,171208,484.31,Revenue,Rentokil,76639
Chorley Borough Council,http://statistics.data.gov.uk/id/local-authority/30UE,Capital,Capital,GOVN - Policy & Governance,Architects Fees,3022,Capital Expenditure,Capital,removal of confidential waste from Chorley Town Hall basement 2nd and 4th August 2022,07/10/2022,169999,"1,677.50",Capital,Restore Datashred,16853
Chorley Borough Council,http://statistics.data.gov.uk/id/local-authority/30UE,Capital,Capital,GOVN - Policy & Governance,Architects Fees,3022,Capital Expenditure,Capital,removal of confidential waste from Chorley Town Hall basement 2nd and 4th August 2022  ONE OFF - Boxes - Off Site - ,07/10/2022,170029,"1,072.50",Capital,Restore Datashred,16853
Chorley Borough Council,http://statistics.data.gov.uk/id/local-authority/30UE,Capital,Capital,GOVN - Policy & Governance,Architects Fees,3022,Capital Expenditure,Capital,collection and disposal of confidential waste of  items at Chorley Town Hall basement including 30 damp boxes.,07/10/2022,170029,302.50,Capital,Restore Datashred,16853
Chorley Borough Council,http://statistics.data.gov.uk/id/local-authority/30UE,Capital,Capital,GOVN - Policy & Governance,Architects Fees,3022,Capital Expenditure,Capital,collection and disposal of confidential waste of  items at Chorley Town Hall basement including 30 damp boxes.,07/10/2022,170477,"2,251.00",Capital,Restore Datashred,16853
Chorley Borough Council,http://statistics.data.gov.uk/id/local-authority/30UE,Capital,Capital,GOVN - Policy & Governance,Architects Fees,3022,Capital Expenditure,Capital,"Clearance of furniture from Chorley Town Hall basement on 22, 23 and 24 August 2022 as agreed in quote reference 368828",14/10/2022,170344,"5,523.00",Capital,Restore Harrow Green,85460
Chorley Borough Council,http://statistics.data.gov.uk/id/local-authority/30UE,Control Accounts,Control,GOVN - Policy & Governance,General Balances,100,Balance Sheet,Balance,,24/10/2022,170559,424.00,Revenue,Reward Gateway (UK) Ltd,66814
Chorley Borough Council,http://statistics.data.gov.uk/id/local-authority/30UE,Central Support Services,1009,EARL - Communities,General Subscriptions,40146,Grants and Subscriptions,5031,Subscription to RIAMS Premium as per proposal dated 11 November 2022 Period covered 14/01/22 to 13/01/23,07/10/2022,171153,"3,570.00",Revenue,RH Environmental Ltd,64885
Chorley Borough Council,http://statistics.data.gov.uk/id/local-authority/30UE,Non Domestic Rates Redistribut,,GOVN - Policy & Governance,Tariff to Business Rates Pool,49002,Expenditure not in NCOS,,lancs bus rates pool 2022/23,24/10/2022,170363,"585,290.00",Revenue,Ribble Valley Borough Council DIRECT DEBIT ONLY,21100
Chorley Borough Council,http://statistics.data.gov.uk/id/local-authority/30UE,Non Domestic Rates Redistribut,,GOVN - Policy & Governance,Tariff to Business Rates Pool,49002,Expenditure not in NCOS,,lancs bus rates pool,24/10/2022,170365,"520,257.00",Revenue,Ribble Valley Borough Council DIRECT DEBIT ONLY,21100
Chorley Borough Council,http://statistics.data.gov.uk/id/local-authority/30UE,Non Domestic Rates Redistribut,,GOVN - Policy & Governance,Tariff to Business Rates Pool,49002,Expenditure not in NCOS,,Lancs Bus Rates Pool,24/10/2022,170471,"585,290.00",Revenue,Ribble Valley Borough Council DIRECT DEBIT ONLY,21100
Chorley Borough Council,http://statistics.data.gov.uk/id/local-authority/30UE,Non Domestic Rates Redistribut,,GOVN - Policy & Governance,Tariff to Business Rates Pool,49002,Expenditure not in NCOS,,Lancs Bus Rates Pool,24/10/2022,170472,"585,289.00",Revenue,Ribble Valley Borough Council DIRECT DEBIT ONLY,21100
Chorley Borough Council,http://statistics.data.gov.uk/id/local-authority/30UE,Non Domestic Rates Redistribut,,GOVN - Policy & Governance,Tariff to Business Rates Pool,49002,Expenditure not in NCOS,,lancs B-Rates pool,24/10/2022,171148,"520,257.00",Revenue,Ribble Valley Borough Council DIRECT DEBIT ONLY,21100
Chorley Borough Council,http://statistics.data.gov.uk/id/local-authority/30UE,Central Support Services,1009,CUST - Customer & Digital,Computer Equipment-Purchase,40098,Communication and Computing,5028,"MM6R3B/A	Apple 10.9-inch iPad Air Wi-Fi + Cellular - 5th generation  spac grey- tablet - 64 GB - 10.9`` - 3G, 4G, 5G	",28/10/2022,171113,"5,745.40",Revenue,Ricoh UK Ltd,17126
Chorley Borough Council,http://statistics.data.gov.uk/id/local-authority/30UE,Central Support Services,1009,CUST - Customer & Digital,Computer Equipment-Purchase,40098,Communication and Computing,5028,"MM6R3B/A	Apple 10.9-inch iPad Air Wi-Fi + Cellular - 5th generation  spac grey- tablet - 64 GB - 10.9`` - 3G, 4G, 5G	",28/10/2022,171114,"1,514.66",Revenue,Ricoh UK Ltd,17126
Chorley Borough Council,http://statistics.data.gov.uk/id/local-authority/30UE,Central Support Services,1009,CUST - Customer & Digital,Computer Equipment-Purchase,40098,Communication and Computing,5028,"MM6R3B/A	Apple 10.9-inch iPad Air Wi-Fi + Cellular - 5th generation  spac grey- tablet - 64 GB - 10.9`` - 3G, 4G, 5G	",28/10/2022,171201,"3,045.00",Revenue,Ricoh UK Ltd,17126
Chorley Borough Council,http://statistics.data.gov.uk/id/local-authority/30UE,Central Support Services,1009,CUST - Customer & Digital,Computer Equipment-Purchase,40098,Communication and Computing,5028,"MM6R3B/A	Apple 10.9-inch iPad Air Wi-Fi + Cellular - 5th generation  spac grey- tablet - 64 GB - 10.9`` - 3G, 4G, 5G	",28/10/2022,171202,"8,618.10",Revenue,Ricoh UK Ltd,17126
Chorley Borough Council,http://statistics.data.gov.uk/id/local-authority/30UE,Central Support Services,1009,CUST - Customer & Digital,Computer Equipment-Purchase,40098,Communication and Computing,5028,"MM6R3B/A	Apple 10.9-inch iPad Air Wi-Fi + Cellular - 5th generation  spac grey- tablet - 64 GB - 10.9`` - 3G, 4G, 5G	",28/10/2022,172916,"1,190.09",Revenue,Ricoh UK Ltd,17126
Chorley Borough Council,http://statistics.data.gov.uk/id/local-authority/30UE,Central Support Services,1009,CUST - Customer & Digital,Computer Equipment-Purchase,40098,Communication and Computing,5028,40x logitech folio touch (uk) for ipad air 5th gen 10.9 inch,21/10/2022,173012,"4,327.60",Revenue,Ricoh UK Ltd,17126
Chorley Borough Council,http://statistics.data.gov.uk/id/local-authority/30UE,Central Support Services,1009,GROW - Commercial & Property,Professional Fees,40063,Services,5027,Marketing fees for council commercial property from May 2022 to April 2023,28/10/2022,173251,"1,020.00",Revenue,Rightmove Group Ltd,77717
Chorley Borough Council,http://statistics.data.gov.uk/id/local-authority/30UE,Central Support Services,1009,GROW - Commercial & Property,Professional Fees,40063,Services,5027,Marketing fees for council commercial property from May 2022 to April 2023,28/10/2022,173331,"1,020.00",Revenue,Rightmove Group Ltd,77717
Chorley Borough Council,http://statistics.data.gov.uk/id/local-authority/30UE,Central Support Services,1009,CUST - Customer & Digital,Computer Software-Purchase,40100,Communication and Computing,5028,Annual service fees,24/10/2022,172814,676.63,Revenue,Ripe NCC,77888
Chorley Borough Council,http://statistics.data.gov.uk/id/local-authority/30UE,Capital,Capital,GROW - Commercial & Property,Main Contractor,3007,Capital Expenditure,Capital,Delivery of the Tatton regeneration scheme All in accordance with the executed NEC Engineering & Construct Contract,07/10/2022,172845,"627,801.23",Capital,Robertson CE Limited,81176
Chorley Borough Council,http://statistics.data.gov.uk/id/local-authority/30UE,Business Support,1095,GROW - Commercial & Property,Postages,40082,Communication and Computing,5028,"Renewal of collection service for one year (ref FIR0061559), from August 2022",14/10/2022,172995,825.00,Revenue,Royal Mail Group Plc,17522
Chorley Borough Council,http://statistics.data.gov.uk/id/local-authority/30UE,Planning Policy,1092,PLAN - Planning & Development,Consultants` Fees,40077,Services,5027,Spatial Data Analysis for the Local Plan Housing Capacity (GIS),14/10/2022,171190,800.00,Revenue,Salford GIS Ltd,16684
Chorley Borough Council,http://statistics.data.gov.uk/id/local-authority/30UE,Planning Policy,1092,PLAN - Planning & Development,Consultants` Fees,40077,Services,5027,Progression of GIS for the Central Lancashire Local Plan,07/10/2022,172851,650.00,Revenue,Salford GIS Ltd,16684
Chorley Borough Council,http://statistics.data.gov.uk/id/local-authority/30UE,Planning Policy,1092,PLAN - Planning & Development,Consultants` Fees,40077,Services,5027,GIS work for Local Plan,28/10/2022,173417,"1,500.00",Revenue,Salford GIS Ltd,16684
Chorley Borough Council,http://statistics.data.gov.uk/id/local-authority/30UE,Central Support Services,1009,GOVN - Policy & Governance,General Subscriptions,40146,Grants and Subscriptions,5031,ANNUAL MEMBERSHIP SUBSCRIPTION RENEWAL FOR NORTH WEST LEGAL CONSORTIUM - 2022/2023,07/10/2022,170007,500.00,Revenue,Sefton MBC,20443
Chorley Borough Council,http://statistics.data.gov.uk/id/local-authority/30UE,Homelessness,1075,EARL - Communities,Training Course Fees,17010,Indirect Employee Expenses,5002,"Housing Law & Advice A Foundation (4 day online course)  for delegate Gemma Flood - 26th, 27th, 28th, 29th April 2022 ",28/10/2022,173246,280.00,Revenue,Shelter Training,21902
Chorley Borough Council,http://statistics.data.gov.uk/id/local-authority/30UE,Homelessness,1075,EARL - Communities,Training Course Fees,17010,Indirect Employee Expenses,5002,Housing Law & Advice: A Foundation Online webinar (4 consecutive half days) 26th to 29th April 2022 for two delegates ,28/10/2022,173247,280.00,Revenue,Shelter Training,21902
Chorley Borough Council,http://statistics.data.gov.uk/id/local-authority/30UE,Homelessness,1075,EARL - Communities,Training Course Fees,17010,Indirect Employee Expenses,5002,Housing Law & Advice: A Foundation Online webinar (4 consecutive half days) 26th to 29th April 2022 for two delegates ,28/10/2022,173393,280.00,Revenue,Shelter Training,21902
Chorley Borough Council,http://statistics.data.gov.uk/id/local-authority/30UE,Central Support Services,1009,GROW - Commercial & Property,Professional Fees,40063,Services,5027,Tatton - Signage,07/10/2022,169008,886.00,Revenue,Signs Preston LTD,76902
Chorley Borough Council,http://statistics.data.gov.uk/id/local-authority/30UE,Unapportionable Central OHeads,1009,GROW - Commercial & Property,General Repairs - Reactive,20004,Repairs Maintenance & Alts,5005,Whittle GP Signage,07/10/2022,170438,"1,833.00",Revenue,Signs Preston LTD,76902
Chorley Borough Council,http://statistics.data.gov.uk/id/local-authority/30UE,Open Spaces,1038,CUST - Customer & Digital,Playground Equipment,40008,"Equipment, Furniture & Materia",5023,"Welding works carried out on the MUGA fencing, Harpers Rec, Chorley",07/10/2022,170790,"1,262.00",Revenue,SM Sheet Metal Ltd,21243
Chorley Borough Council,http://statistics.data.gov.uk/id/local-authority/30UE,Service Management & Support,1009,CUST - Customer & Digital,Supplies-Grounds Maintenance,40025,"Equipment, Furniture & Materia",5023,Repairs to lawn mowers,28/10/2022,173296,250.00,Revenue,SM Sheet Metal Ltd,21243
Chorley Borough Council,http://statistics.data.gov.uk/id/local-authority/30UE,Central Support Services,1009,EARL - Communities,Core Funding Grants,40133,Grants and Subscriptions,5031,Core small funding grant,07/10/2022,172802,400.00,Revenue,SMART Recovery Chorley,85605
Chorley Borough Council,http://statistics.data.gov.uk/id/local-authority/30UE,Unapportionable Central OHeads,1009,GOVN - Policy & Governance,Lone Working System,40097,Communication and Computing,5028,Service Charge for Solo Protect Devices - Invoice 146154,28/10/2022,173245,500.80,Revenue,SoloProtect Ltd,76206
Chorley Borough Council,http://statistics.data.gov.uk/id/local-authority/30UE,Control Accounts,Control,GOVN - Policy & Governance,General Balances,100,Balance Sheet,Balance,Monthly deds from expenses,28/10/2022,173453,299.46,Revenue,St Catherines Hospice Promotions,72375
Chorley Borough Council,http://statistics.data.gov.uk/id/local-authority/30UE,Capital,Capital,EARL - Communities,Grants,3002,Capital Expenditure,Capital,22/00059/CAG,07/10/2022,172807,"3,008.00",Capital,Stannah Lift Services Ltd,80943
Chorley Borough Council,http://statistics.data.gov.uk/id/local-authority/30UE,Capital,Capital,EARL - Communities,Grants,3002,Capital Expenditure,Capital,22/00036/CAG,07/10/2022,172809,"7,082.00",Capital,Stannah Lift Services Ltd,80943
Chorley Borough Council,http://statistics.data.gov.uk/id/local-authority/30UE,Capital,Capital,EARL - Communities,Grants,3002,Capital Expenditure,Capital,22/00039/DFG,07/10/2022,172818,"3,416.00",Capital,Stannah Lift Services Ltd,80943
Chorley Borough Council,http://statistics.data.gov.uk/id/local-authority/30UE,Parking Services,1066,GROW - Commercial & Property,Consultants` Fees,40077,Services,5027,extended services for period 01.07.22 - 30.09.22,07/10/2022,172844,"3,394.31",Revenue,Street Civil Engineering Limited,76750
Chorley Borough Council,http://statistics.data.gov.uk/id/local-authority/30UE,Capital,Capital,EARL - Communities,Grants,3002,Capital Expenditure,Capital,22/00067/CAG,07/10/2022,172808,"6,235.00",Capital,Stringfellow Bldg Cntrctrs Ltd,17893
Chorley Borough Council,http://statistics.data.gov.uk/id/local-authority/30UE,Capital,Capital,GROW - Commercial & Property,Purchase Of Vehicles & Plant,3013,Capital Expenditure,Capital,Primrose Caf� Works Works as agreed with Primrose/Caf� and Surveyor NAME REDACTED,14/10/2022,173118,"7,578.43",Capital,Stringfellow Bldg Cntrctrs Ltd,17893
Chorley Borough Council,http://statistics.data.gov.uk/id/local-authority/30UE,Capital,Capital,GROW - Commercial & Property,Other Contractor,3012,Capital Expenditure,Capital,"Unit 4B Market Walk, Chorley Blockwork - Cut blockwork and install door Fire Stopping - ",14/10/2022,173119,"6,600.00",Capital,Stringfellow Bldg Cntrctrs Ltd,17893
Chorley Borough Council,http://statistics.data.gov.uk/id/local-authority/30UE,Unapportionable Central OHeads,1009,GROW - Commercial & Property,General Repairs - Reactive,20004,Repairs Maintenance & Alts,5005,Primrose - reactive repairs,14/10/2022,173122,344.46,Revenue,Stringfellow Bldg Cntrctrs Ltd,17893
Chorley Borough Council,http://statistics.data.gov.uk/id/local-authority/30UE,Capital,Capital,EARL - Communities,Grants,3002,Capital Expenditure,Capital,21/00128/DFG,28/10/2022,173423,"7,884.00",Capital,Stringfellow Bldg Cntrctrs Ltd,17893
Chorley Borough Council,http://statistics.data.gov.uk/id/local-authority/30UE,Democratic Represent and  Mgnt,1007,PLAN - Planning & Development,External Contractor,40198,Miscellaneous Expenses,5034,"Delivery of 2 large skips to Crosse Hall Allotments, Crosse Hall Lane, Chorley, PR6 9AW. Tuesday 9th August",07/10/2022,172722,285.98,Revenue,SUEZ R&R UK LTD,17615
Chorley Borough Council,http://statistics.data.gov.uk/id/local-authority/30UE,Central Support Services,1009,EARL - Communities,Misc Expenses,40200,Miscellaneous Expenses,5034,Supply of skip hire on Saturday 3rd September at Mawdesley Village Hall Carpark,07/10/2022,172856,742.38,Revenue,SUEZ R&R UK LTD,17615
Chorley Borough Council,http://statistics.data.gov.uk/id/local-authority/30UE,Central Support Services,1009,EARL - Communities,Misc Expenses,40200,Miscellaneous Expenses,5034,Provision of 2 x skips on Saturday 24th September in Adlington (Two sites - Windsor Rd and Adlington Community Centre),14/10/2022,172857,300.76,Revenue,SUEZ R&R UK LTD,17615
Chorley Borough Council,http://statistics.data.gov.uk/id/local-authority/30UE,Central Support Services,1009,EARL - Communities,Misc Expenses,40200,Miscellaneous Expenses,5034,Supply of skip hire on Saturday 3rd September at Heath Charnock - White Horse car park,07/10/2022,172858,277.95,Revenue,SUEZ R&R UK LTD,17615
Chorley Borough Council,http://statistics.data.gov.uk/id/local-authority/30UE,Democratic Represent and  Mgnt,1007,PLAN - Planning & Development,External Contractor,40198,Miscellaneous Expenses,5034,"Delivery of 2 large skips to Crosse Hall Allotments, Crosse Hall Lane, Chorley, PR6 9AW. Tuesday 9th August",07/10/2022,172863,480.28,Revenue,SUEZ R&R UK LTD,17615
Chorley Borough Council,http://statistics.data.gov.uk/id/local-authority/30UE,Central Support Services,1009,EARL - Communities,Misc Expenses,40200,Miscellaneous Expenses,5034,Provision of 2 x skips on Saturday 24th September in Adlington (Two sites - Windsor Rd and Adlington Community Centre),14/10/2022,172869,329.25,Revenue,SUEZ R&R UK LTD,17615
Chorley Borough Council,http://statistics.data.gov.uk/id/local-authority/30UE,Service Management & Support,1009,CUST - Customer & Digital,Refuse Collection,20037,Cleaning and Domestic Supplies,5012,Exchange 20 yard Street Sweeping Skip ,28/10/2022,173295,728.64,Revenue,SUEZ R&R UK LTD,17615
Chorley Borough Council,http://statistics.data.gov.uk/id/local-authority/30UE,Service Management & Support,1009,CUST - Customer & Digital,Refuse Collection,20037,Cleaning and Domestic Supplies,5012,Exchange 35 yard General Waste Skip ,28/10/2022,173295,809.46,Revenue,SUEZ R&R UK LTD,17615
Chorley Borough Council,http://statistics.data.gov.uk/id/local-authority/30UE,Homelessness,1075,EARL - Communities,Service Fees,40056,Services,5027,Removal service - NAMES REDACTED - From CSH to new part 6 property,28/10/2022,173451,875.00,Revenue,Swift Removals NW,86919
Chorley Borough Council,http://statistics.data.gov.uk/id/local-authority/30UE,Democratic Represent and  Mgnt,1007,PLAN - Planning & Development,Grounds Maintenance Contractor,20043,Grounds Maintenance Costs,5013,Cut and bale the meadow at Blainscough Wood Nature Reserve.  Beware of the mineshaft markers.  ,14/10/2022,172988,965.00,Revenue,T & L Kirkham,17058
Chorley Borough Council,http://statistics.data.gov.uk/id/local-authority/30UE,Service Management & Support,1009,PLAN - Planning & Development,External Contractor,40198,Miscellaneous Expenses,5034,"Parkers in Fields (Yarrow Meadows, Valley Bottoms) cutting and bailing of the meadows using various access points ",14/10/2022,172990,"1,450.00",Revenue,T & L Kirkham,17058
Chorley Borough Council,http://statistics.data.gov.uk/id/local-authority/30UE,Service Management & Support,1009,PLAN - Planning & Development,External Contractor,40198,Miscellaneous Expenses,5034,Cutting the meadow at Lower Burgh Meadows once pipes and manholes have been strimmed by the rangers. ,14/10/2022,172991,"1,300.00",Revenue,T & L Kirkham,17058
Chorley Borough Council,http://statistics.data.gov.uk/id/local-authority/30UE,Culture & Heritage,1036,GOVN - Policy & Governance,Publicity - Advertising,40157,Miscellaneous Expenses,5034,Distribution and display of the Astley Hall 2022 promotional leaflet with Take One Media Oct - December,28/10/2022,173280,620.00,Revenue,Take One Media,21807
Chorley Borough Council,http://statistics.data.gov.uk/id/local-authority/30UE,Central Support Services,1009,CUST - Customer & Digital,CCTV Camera Maintenance,40007,"Equipment, Furniture & Materia",5023,Repairs and re-instatement of Cameras at Tatton Rec,21/10/2022,170441,"3,500.00",Revenue,Technology Solutions,72376
Chorley Borough Council,http://statistics.data.gov.uk/id/local-authority/30UE,Central Support Services,1009,CUST - Customer & Digital,CCTV Camera Maintenance,40007,"Equipment, Furniture & Materia",5023,Ongoing CCTV maintenance and repairs,28/10/2022,173350,532.50,Revenue,Technology Solutions,72376
Chorley Borough Council,http://statistics.data.gov.uk/id/local-authority/30UE,Elections,1012,GOVN - Policy & Governance,Training Course Fees,17010,Indirect Employee Expenses,5002,Training - 7 December 2022 (via TEAMS) Key Considerations for Returning Officers and their deputies,14/10/2022,172743,267.00,Revenue,The Association Of Electoral Administrators,16344
Chorley Borough Council,http://statistics.data.gov.uk/id/local-authority/30UE,Business Support,1095,GROW - Commercial & Property,Security Service,40062,Services,5027,Eviction of travellers on Strawberry Fields,28/10/2022,173300,"2,000.00",Revenue,The ExcluSec Group Ltd,78056
Chorley Borough Council,http://statistics.data.gov.uk/id/local-authority/30UE,Central Support Services,1009,CUST - Customer & Digital,Computer Software-Maintenance,40107,Communication and Computing,5028,"� Out of Hours is defined as Monday-Friday 06:00-08:00, 18:00-00:00, Sat-Sun, 08:00-18:00",07/10/2022,172850,725.00,Revenue,The Networking People (NorthWest) Ltd T/a TNP Ltd,73446
Chorley Borough Council,http://statistics.data.gov.uk/id/local-authority/30UE,Central Support Services,1009,CUST - Customer & Digital,Computer Equipment-Maintenance,40105,Communication and Computing,5028,excess construction fees  to ONEA70779481,07/10/2022,172853,"2,844.04",Revenue,The Networking People (NorthWest) Ltd T/a TNP Ltd,73446
Chorley Borough Council,http://statistics.data.gov.uk/id/local-authority/30UE,Central Support Services,1009,CUST - Customer & Digital,Computer Equipment-Purchase,40098,Communication and Computing,5028,Scope of Works Clearance of Rack 1 as requested by Ampec Removal of Eltek UPS Unit and old Telewest ISDN Equipment. ,07/10/2022,172861,725.00,Revenue,The Networking People (NorthWest) Ltd T/a TNP Ltd,73446
Chorley Borough Council,http://statistics.data.gov.uk/id/local-authority/30UE,Central Support Services,1009,CUST - Customer & Digital,Computer Software-Maintenance,40107,Communication and Computing,5028,Chorley Council Cable Management Sundries,28/10/2022,173240,691.30,Revenue,The Networking People (NorthWest) Ltd T/a TNP Ltd,73446
Chorley Borough Council,http://statistics.data.gov.uk/id/local-authority/30UE,Central Support Services,1009,CUST - Customer & Digital,Computer Software-Maintenance,40107,Communication and Computing,5028,FC-10-W060F-950-02-12 - FortiGate Services: FortiWiFi-60F 1 Year Unified 1 439.40 20.0 439.40,28/10/2022,173312,439.40,Revenue,The Networking People (NorthWest) Ltd T/a TNP Ltd,73446
Chorley Borough Council,http://statistics.data.gov.uk/id/local-authority/30UE,Central Support Services,1009,GROW - Commercial & Property,Agency Staff,13000,Direct Employee Expenses,5001,Estate surveyor fees for NAME REDACTED,07/10/2022,171183,"1,128.90",Revenue,The Oyster Partnership Ltd,81409
Chorley Borough Council,http://statistics.data.gov.uk/id/local-authority/30UE,Central Support Services,1009,GROW - Commercial & Property,Agency Staff,13000,Direct Employee Expenses,5001,Estate surveyor fees for NAME REDACTED,07/10/2022,171184,712.05,Revenue,The Oyster Partnership Ltd,81409
Chorley Borough Council,http://statistics.data.gov.uk/id/local-authority/30UE,Tourism,1039,GOVN - Policy & Governance,Publicity - Advertising,40157,Miscellaneous Expenses,5034,CL 450 stapled sets,28/10/2022,173375,450.00,Revenue,The Print Quarter,17987
Chorley Borough Council,http://statistics.data.gov.uk/id/local-authority/30UE,Capital,Capital,GROW - Commercial & Property,Main Contractor,3007,Capital Expenditure,Capital,Astley hall Variations and additional work as agreed with Ian Summersgill for refurb project,28/10/2022,173234,"1,941.10",Capital,THOMAS CONSULTING LIMITED,84030
Chorley Borough Council,http://statistics.data.gov.uk/id/local-authority/30UE,Elections,1012,GOVN - Policy & Governance,Publications,40054,"Printing, Stationery & General",5026,Schofields election law release 66,14/10/2022,172868,314.00,Revenue,Thomson Reuters RE;Sweet & Maxwell Limited,17932
Chorley Borough Council,http://statistics.data.gov.uk/id/local-authority/30UE,Central Support Services,1009,GROW - Commercial & Property,Professional Fees,40063,Services,5027,Development and Commercial Management (Stage 2)- Charnock Richard Garden Village,07/10/2022,172727,"3,000.00",Revenue,Trebbi Continuum,77723
Chorley Borough Council,http://statistics.data.gov.uk/id/local-authority/30UE,Service Management & Support,1009,CUST - Customer & Digital,Grounds Maintenance Contractor,20043,Grounds Maintenance Costs,5013,Fell Willow by pylon - Recycling centre.,28/10/2022,173138,840.00,Revenue,Treescape North West Ltd,17688
Chorley Borough Council,http://statistics.data.gov.uk/id/local-authority/30UE,Service Management & Support,1009,CUST - Customer & Digital,Grounds Maintenance Contractor,20043,Grounds Maintenance Costs,5013,Pruning at ADDRESS REDACTED,28/10/2022,173278,440.00,Revenue,Treescape North West Ltd,17688
Chorley Borough Council,http://statistics.data.gov.uk/id/local-authority/30UE,Service Management & Support,1009,CUST - Customer & Digital,Grounds Maintenance Contractor,20043,Grounds Maintenance Costs,5013,Fell Ash - ADDRESS REDACTED,28/10/2022,173281,440.00,Revenue,Treescape North West Ltd,17688
Chorley Borough Council,http://statistics.data.gov.uk/id/local-authority/30UE,Service Management & Support,1009,CUST - Customer & Digital,Grounds Maintenance Contractor,20043,Grounds Maintenance Costs,5013,Fell Ash trees - ADDRESS REDACTED,28/10/2022,173282,840.00,Revenue,Treescape North West Ltd,17688
Chorley Borough Council,http://statistics.data.gov.uk/id/local-authority/30UE,Service Management & Support,1009,CUST - Customer & Digital,Grounds Maintenance Contractor,20043,Grounds Maintenance Costs,5013,"Felling and removal of split Willow, Brookfield, Croston.",28/10/2022,173283,440.00,Revenue,Treescape North West Ltd,17688
Chorley Borough Council,http://statistics.data.gov.uk/id/local-authority/30UE,Service Management & Support,1009,CUST - Customer & Digital,Grounds Maintenance Contractor,20043,Grounds Maintenance Costs,5013,Fell dead Elms - Yarrow Valley Way,28/10/2022,173284,840.00,Revenue,Treescape North West Ltd,17688
Chorley Borough Council,http://statistics.data.gov.uk/id/local-authority/30UE,Service Management & Support,1009,CUST - Customer & Digital,Grounds Maintenance Contractor,20043,Grounds Maintenance Costs,5013,Fell dead Elm near Astley Village underpass.,28/10/2022,173285,440.00,Revenue,Treescape North West Ltd,17688
Chorley Borough Council,http://statistics.data.gov.uk/id/local-authority/30UE,Service Management & Support,1009,CUST - Customer & Digital,Grounds Maintenance Contractor,20043,Grounds Maintenance Costs,5013,Invoice 0099 Treexpert,28/10/2022,173262,"1,330.00",Revenue,Treexpert Tree Care,78580
Chorley Borough Council,http://statistics.data.gov.uk/id/local-authority/30UE,Homelessness,1075,GOVN - Policy & Governance,Television Licence,40170,Miscellaneous Expenses,5034,jun 22 - jun 23,14/10/2022,173128,318.00,Revenue,TV Licensing,18105
Chorley Borough Council,http://statistics.data.gov.uk/id/local-authority/30UE,Service Management & Support,1009,CUST - Customer & Digital,Petrol,30005,Direct Transport Costs,5016,DD fuel cards,24/10/2022,171064,253.82,Revenue,Uk Fuels Ltd,57996
Chorley Borough Council,http://statistics.data.gov.uk/id/local-authority/30UE,Service Management & Support,1009,CUST - Customer & Digital,Petrol,30005,Direct Transport Costs,5016,DD Fuel Cards,24/10/2022,171071,253.29,Revenue,Uk Fuels Ltd,57996
Chorley Borough Council,http://statistics.data.gov.uk/id/local-authority/30UE,Service Management & Support,1009,CUST - Customer & Digital,Petrol,30005,Direct Transport Costs,5016,DD Fuel Cards,24/10/2022,171073,307.70,Revenue,Uk Fuels Ltd,57996
Chorley Borough Council,http://statistics.data.gov.uk/id/local-authority/30UE,Service Management & Support,1009,CUST - Customer & Digital,Petrol,30005,Direct Transport Costs,5016,DD Fuel Cards,24/10/2022,171076,429.69,Revenue,Uk Fuels Ltd,57996
Chorley Borough Council,http://statistics.data.gov.uk/id/local-authority/30UE,Unapportionable Central OHeads,1009,GOVN - Policy & Governance,Misc Expenses,40200,Miscellaneous Expenses,5034,healthcare cover,07/10/2022,172917,"1,435.20",Revenue,UK Healthcare (BDHSC),17241
Chorley Borough Council,http://statistics.data.gov.uk/id/local-authority/30UE,Unapportionable Central OHeads,1009,GOVN - Policy & Governance,Misc Expenses,40200,Miscellaneous Expenses,5034,01-Aug-22,21/10/2022,173185,"1,380.00",Revenue,UK Healthcare (BDHSC),17241
Chorley Borough Council,http://statistics.data.gov.uk/id/local-authority/30UE,Tourism,1039,GOVN - Policy & Governance,Misc Expenses,40200,Miscellaneous Expenses,5034,"Chorley Live 2022 
1 Facepainter - Friday 7 & Saturday 8 October 2022",28/10/2022,173288,500.00,Revenue,UK Media and Events Limited,71221
Chorley Borough Council,http://statistics.data.gov.uk/id/local-authority/30UE,Unapportionable Central OHeads,1009,CUST - Customer & Digital,Professional Fees,14011,Direct Employee Expenses,5001,Daily Hybrid Mail & Annual Billing,07/10/2022,170561,"1,341.60",Revenue,UKMAIL Ltd (Mail),57758
Chorley Borough Council,http://statistics.data.gov.uk/id/local-authority/30UE,Unapportionable Central OHeads,1009,CUST - Customer & Digital,Professional Fees,14011,Direct Employee Expenses,5001,Daily Hybrid Mail & Annual Billing,07/10/2022,170568,991.04,Revenue,UKMAIL Ltd (Mail),57758
Chorley Borough Council,http://statistics.data.gov.uk/id/local-authority/30UE,Unapportionable Central OHeads,1009,CUST - Customer & Digital,Professional Fees,14011,Direct Employee Expenses,5001,Daily Hybrid Mail & Annual Billing,07/10/2022,170573,918.43,Revenue,UKMAIL Ltd (Mail),57758
Chorley Borough Council,http://statistics.data.gov.uk/id/local-authority/30UE,Unapportionable Central OHeads,1009,CUST - Customer & Digital,Professional Fees,14011,Direct Employee Expenses,5001,Daily Hybrid Mail & Annual Billing,07/10/2022,170577,929.75,Revenue,UKMAIL Ltd (Mail),57758
Chorley Borough Council,http://statistics.data.gov.uk/id/local-authority/30UE,Unapportionable Central OHeads,1009,CUST - Customer & Digital,Professional Fees,14011,Direct Employee Expenses,5001,Daily Hybrid Mail & Annual Billing,07/10/2022,170691,"2,306.06",Revenue,UKMAIL Ltd (Mail),57758
Chorley Borough Council,http://statistics.data.gov.uk/id/local-authority/30UE,Unapportionable Central OHeads,1009,CUST - Customer & Digital,Professional Fees,14011,Direct Employee Expenses,5001,Daily Hybrid Mail & Annual Billing,07/10/2022,170891,656.00,Revenue,UKMAIL Ltd (Mail),57758
Chorley Borough Council,http://statistics.data.gov.uk/id/local-authority/30UE,Unapportionable Central OHeads,1009,CUST - Customer & Digital,Professional Fees,14011,Direct Employee Expenses,5001,Daily Hybrid Mail & Annual Billing,07/10/2022,170950,"1,074.77",Revenue,UKMAIL Ltd (Mail),57758
Chorley Borough Council,http://statistics.data.gov.uk/id/local-authority/30UE,Unapportionable Central OHeads,1009,CUST - Customer & Digital,Postages,40082,Communication and Computing,5028,Daily Hybrid Mail & Annual Billing Outstanding Invoices,07/10/2022,171158,948.86,Revenue,UKMAIL Ltd (Mail),57758
Chorley Borough Council,http://statistics.data.gov.uk/id/local-authority/30UE,Unapportionable Central OHeads,1009,CUST - Customer & Digital,Postages,40082,Communication and Computing,5028,Daily Hybrid Mail & Annual Billing Outstanding Invoices,07/10/2022,171176,"1,163.87",Revenue,UKMAIL Ltd (Mail),57758
Chorley Borough Council,http://statistics.data.gov.uk/id/local-authority/30UE,Unapportionable Central OHeads,1009,CUST - Customer & Digital,Postages,40082,Communication and Computing,5028,Daily Hybrid Mail & Annual Billing Outstanding Invoices,07/10/2022,171177,"2,857.46",Revenue,UKMAIL Ltd (Mail),57758
Chorley Borough Council,http://statistics.data.gov.uk/id/local-authority/30UE,Unapportionable Central OHeads,1009,CUST - Customer & Digital,Postages,40082,Communication and Computing,5028,Daily Hybrid Mail & Annual Billing Outstanding Invoices,07/10/2022,171178,783.84,Revenue,UKMAIL Ltd (Mail),57758
Chorley Borough Council,http://statistics.data.gov.uk/id/local-authority/30UE,Unapportionable Central OHeads,1009,CUST - Customer & Digital,Postages,40082,Communication and Computing,5028,Daily Hybrid Mail & Annual Billing Outstanding Invoices,07/10/2022,171179,"3,910.30",Revenue,UKMAIL Ltd (Mail),57758
Chorley Borough Council,http://statistics.data.gov.uk/id/local-authority/30UE,Corporate Management,1008,EARL - Communities,Other Contributions,40145,Grants and Subscriptions,5031,Delivery of support for residents experiencing financial hardship,28/10/2022,173074,"2,000.00",Revenue,United Reformed Church,20885
Chorley Borough Council,http://statistics.data.gov.uk/id/local-authority/30UE,Capital,Capital,EARL - Communities,Grants,3002,Capital Expenditure,Capital,22/00010/CAG,07/10/2022,172810,"4,975.00",Capital,UPS Building and Maintenance Ltd,76235
Chorley Borough Council,http://statistics.data.gov.uk/id/local-authority/30UE,Capital,Capital,EARL - Communities,Grants,3002,Capital Expenditure,Capital,22/00007/CAG,07/10/2022,172811,"4,610.00",Capital,UPS Building and Maintenance Ltd,76235
Chorley Borough Council,http://statistics.data.gov.uk/id/local-authority/30UE,Capital,Capital,EARL - Communities,Grants,3002,Capital Expenditure,Capital,22/00034/CAG,14/10/2022,172897,"4,940.00",Capital,UPS Building and Maintenance Ltd,76235
Chorley Borough Council,http://statistics.data.gov.uk/id/local-authority/30UE,Capital,Capital,EARL - Communities,Grants,3002,Capital Expenditure,Capital,22/00038/CAG,28/10/2022,173424,"5,820.00",Capital,UPS Building and Maintenance Ltd,76235
Chorley Borough Council,http://statistics.data.gov.uk/id/local-authority/30UE,Central Support Services,1009,CUST - Customer & Digital,Telephones - Rentals,40083,Communication and Computing,5028,rent,21/10/2022,173223,"2,146.75",Revenue,Virgin Media Payments Ltd,17632
Chorley Borough Council,http://statistics.data.gov.uk/id/local-authority/30UE,Development Control,1091,PLAN - Planning & Development,Agency Staff,13000,Direct Employee Expenses,5001,Contract work - Consultant NAME REDACTED.  April 2022 - March 2023,14/10/2022,170887,"1,777.50",Revenue,Vivid Resourcing Ltd,76938
Chorley Borough Council,http://statistics.data.gov.uk/id/local-authority/30UE,Central Support Services,1009,EARL - Communities,External Contractor,40198,Miscellaneous Expenses,5034,Charge for supply of contractors,07/10/2022,171125,"1,110.38",Revenue,Vivid Resourcing Ltd,76938
Chorley Borough Council,http://statistics.data.gov.uk/id/local-authority/30UE,Development Control,1091,PLAN - Planning & Development,Agency Staff,13000,Direct Employee Expenses,5001,Contract work - Consultant MNAME REDACTED.  April 2022 - March 2023,14/10/2022,171126,"1,687.50",Revenue,Vivid Resourcing Ltd,76938
Chorley Borough Council,http://statistics.data.gov.uk/id/local-authority/30UE,Central Support Services,1009,EARL - Communities,External Contractor,40198,Miscellaneous Expenses,5034,Charge for supply of contractors,07/10/2022,171197,868.88,Revenue,Vivid Resourcing Ltd,76938
Chorley Borough Council,http://statistics.data.gov.uk/id/local-authority/30UE,Central Support Services,1009,EARL - Communities,External Contractor,40198,Miscellaneous Expenses,5034,Charge for supply of contractors,07/10/2022,172709,993.00,Revenue,Vivid Resourcing Ltd,76938
Chorley Borough Council,http://statistics.data.gov.uk/id/local-authority/30UE,Economic Development,1096,GROW - Commercial & Property,Agency Staff,13000,Direct Employee Expenses,5001,NAME REDACTED Interim Service Lead -,07/10/2022,172723,"3,808.75",Revenue,Vivid Resourcing Ltd,76938
Chorley Borough Council,http://statistics.data.gov.uk/id/local-authority/30UE,Central Support Services,1009,EARL - Communities,External Contractor,40198,Miscellaneous Expenses,5034,Charge for supply of contractors,07/10/2022,172750,863.63,Revenue,Vivid Resourcing Ltd,76938
Chorley Borough Council,http://statistics.data.gov.uk/id/local-authority/30UE,Central Support Services,1009,GROW - Commercial & Property,Agency Staff,13000,Direct Employee Expenses,5001,Agency Fees for Estate Surveyor NAME REDACTED - 12mths,28/10/2022,173162,"1,286.88",Revenue,Vivid Resourcing Ltd,76938
Chorley Borough Council,http://statistics.data.gov.uk/id/local-authority/30UE,Central Support Services,1009,GROW - Commercial & Property,Agency Staff,13000,Direct Employee Expenses,5001,Agency Fees for Estate Surveyor NAME REDACTED - 12mths,28/10/2022,173175,900.00,Revenue,Vivid Resourcing Ltd,76938
Chorley Borough Council,http://statistics.data.gov.uk/id/local-authority/30UE,Regulatory Services,1048,GROW - Commercial & Property,Water - Metered Supplies,20022,Water Services,5009,"Public conviences, babylon lane",07/10/2022,172918,"1,237.99",Revenue,WaterPlus 4078323925 Public Conveniences Babylon,85179
Chorley Borough Council,http://statistics.data.gov.uk/id/local-authority/30UE,Central Support Services,1009,GROW - Commercial & Property,Water - Metered Supplies,20022,Water Services,5009,Byron Street council offices,07/10/2022,172921,270.89,Revenue,WaterPlus 4083537246 Council Offices Byron St,84183
Chorley Borough Council,http://statistics.data.gov.uk/id/local-authority/30UE,Central Support Services,1009,GROW - Commercial & Property,Water - Metered Supplies,20022,Water Services,5009,Byron Street council offices,07/10/2022,172922,270.89,Revenue,WaterPlus 4083537246 Council Offices Byron St,84183
Chorley Borough Council,http://statistics.data.gov.uk/id/local-authority/30UE,Democratic Represent and  Mgnt,1007,GROW - Commercial & Property,Water - Metered Supplies,20022,Water Services,5009,05/08/2022 - 04/09/2022,07/10/2022,172876,"1,057.59",Revenue,"WaterPlus 4084119682 Village Centre, Great Greens",86912
Chorley Borough Council,http://statistics.data.gov.uk/id/local-authority/30UE,Democratic Represent and  Mgnt,1007,GROW - Commercial & Property,Water - Metered Supplies,20022,Water Services,5009,05/08/2022 - 04/09/2022,07/10/2022,172933,917.58,Revenue,WaterPlus 4084262460 Allotments Crosse Hall Lane,86915
Chorley Borough Council,http://statistics.data.gov.uk/id/local-authority/30UE,Unapportionable Central OHeads,1009,GROW - Commercial & Property,Water - Metered Supplies,20022,Water Services,5009,13/08/2022 - 12/09/2022,07/10/2022,172877,"1,743.81",Revenue,WaterPlus 4085884879 Town Hall,84240
Chorley Borough Council,http://statistics.data.gov.uk/id/local-authority/30UE,Democratic Represent and  Mgnt,1007,GROW - Commercial & Property,Water - Metered Supplies,20022,Water Services,5009,12/08/2022 - 11/09/2022,07/10/2022,172879,459.29,Revenue,WaterPlus 4159823953 Astley Coach House,85508
Chorley Borough Council,http://statistics.data.gov.uk/id/local-authority/30UE,Business Support,1095,GROW - Commercial & Property,Water - Metered Supplies,20022,Water Services,5009,14 September 2022 - 13 October 2022,28/10/2022,173137,"1,180.46",Revenue,WaterPlus 6002259172 The Strawberry Fields,86926
Chorley Borough Council,http://statistics.data.gov.uk/id/local-authority/30UE,Central Support Services,1009,CUST - Customer & Digital,Internet Charges,40104,Communication and Computing,5028,Supply wifi for the Chorley Flower show vendors on the main grass area beyond the cafe and the entrance area near the car park ,07/10/2022,172714,"2,830.00",Revenue,Wave Internet,82095
Chorley Borough Council,http://statistics.data.gov.uk/id/local-authority/30UE,Economic Development,1096,GROW - Commercial & Property,Publicity - Advertising,40157,Miscellaneous Expenses,5034,Chorley market pens   Red albion grip ballpen (full colour print)  ,07/10/2022,170933,600.00,Revenue,WeBrand4You,68716
Chorley Borough Council,http://statistics.data.gov.uk/id/local-authority/30UE,Unapportionable Central OHeads,1009,GOVN - Policy & Governance,Postages,40082,Communication and Computing,5028,Weekly collection of mail from Union Street,28/10/2022,173256,274.49,Revenue,Whistl North Limited,67256
Chorley Borough Council,http://statistics.data.gov.uk/id/local-authority/30UE,Unapportionable Central OHeads,1009,GOVN - Policy & Governance,Postages,40082,Communication and Computing,5028,,28/10/2022,173256,3.60,Revenue,Whistl North Limited,67256
Chorley Borough Council,http://statistics.data.gov.uk/id/local-authority/30UE,Central Support Services,1009,EARL - Communities,Misc Expenses,40200,Miscellaneous Expenses,5034,Environmental improvement funding,07/10/2022,172800,400.00,Revenue,Whittle-le-Woods Parish Council,18602
Chorley Borough Council,http://statistics.data.gov.uk/id/local-authority/30UE,Development Control,1091,PLAN - Planning & Development,Professional Fees,40063,Services,5027,HM Justice: New Prison Chorley - Consultancy FEES & DISBURSEMENTS,14/10/2022,170498,"14,939.00",Revenue,WSP UK Ltd,77416
Chorley Borough Council,http://statistics.data.gov.uk/id/local-authority/30UE,Unapportionable Central OHeads,1009,GROW - Commercial & Property,Planned Maintenance,20006,Repairs Maintenance & Alts,5005,Westway - Auto Doors and shutters Planned Maintenance,28/10/2022,173310,490.00,Revenue,Yates Entrance Solutions Ltd,84714
